Body Name,Body,Date,Department,Beneficiary,Summary of Purpose (SeRCOP),Amount SUM,Merchant Code,Transaction Number,Supplier ID
Sandwell Metropolitan Borough Council,http://www.sandwell.gov.uk/info/200202/performance_and_spending/1079/payments_over_500,01-Aug-2023,Adults Social Care Capital,DOLPHIN LIFTS MIDLANDS LTD,Adults Social Care Capital,1963.00,Deferred Charges/Grant Payments,2324P05_CR00001,123852
Sandwell Metropolitan Borough Council,http://www.sandwell.gov.uk/info/200202/performance_and_spending/1079/payments_over_500,16-Aug-2023,Adults Social Care Capital,DOLPHIN LIFTS MIDLANDS LTD,Adults Social Care Capital,1508.66,Deferred Charges/Grant Payments,2324P05_CR00002,123852
Sandwell Metropolitan Borough Council,http://www.sandwell.gov.uk/info/200202/performance_and_spending/1079/payments_over_500,01-Aug-2023,Adults Social Care Capital,VINCI CONSTRUCTION LTD,Adults Social Care Capital,5283.47,Deferred Charges/Grant Payments,2324P05_CR00003,36361
Sandwell Metropolitan Borough Council,http://www.sandwell.gov.uk/info/200202/performance_and_spending/1079/payments_over_500,01-Aug-2023,Adults Social Care Capital,VINCI CONSTRUCTION LTD,Adults Social Care Capital,8682.38,Deferred Charges/Grant Payments,2324P05_CR00004,36361
Sandwell Metropolitan Borough Council,http://www.sandwell.gov.uk/info/200202/performance_and_spending/1079/payments_over_500,29-Aug-2023,Adults Social Care Capital,VINCI CONSTRUCTION LTD,Adults Social Care Capital,12060.19,Deferred Charges/Grant Payments,2324P05_CR00005,36361
Sandwell Metropolitan Borough Council,http://www.sandwell.gov.uk/info/200202/performance_and_spending/1079/payments_over_500,11-Aug-2023,Adults Social Care Capital,HOME DESIGN,Adults Social Care Capital,2340.00,Deferred Charges/Grant Payments,2324P05_CR00006,141847
Sandwell Metropolitan Borough Council,http://www.sandwell.gov.uk/info/200202/performance_and_spending/1079/payments_over_500,09-Aug-2023,Adults Social Care Capital,TDF DESIGN LIMITED,Adults Social Care Capital,11500.00,Deferred Charges/Grant Payments,2324P05_CR00007,10320
Sandwell Metropolitan Borough Council,http://www.sandwell.gov.uk/info/200202/performance_and_spending/1079/payments_over_500,01-Aug-2023,Adults Social Care Capital,R J WISHART,Adults Social Care Capital,23000.00,Deferred Charges/Grant Payments,2324P05_CR00008,08555927
Sandwell Metropolitan Borough Council,http://www.sandwell.gov.uk/info/200202/performance_and_spending/1079/payments_over_500,18-Aug-2023,Adults Social Care Capital,B S VIRDEE,Adults Social Care Capital,11530.00,Deferred Charges/Grant Payments,2324P05_CR00009,16907
Sandwell Metropolitan Borough Council,http://www.sandwell.gov.uk/info/200202/performance_and_spending/1079/payments_over_500,25-Aug-2023,Adults Social Care Capital,REDACTED PERSONAL DATA,Adults Social Care Capital,1800.00,Deferred Charges/Grant Payments,2324P05_CR00010,REDACTED PERSONAL DATA
Sandwell Metropolitan Borough Council,http://www.sandwell.gov.uk/info/200202/performance_and_spending/1079/payments_over_500,01-Aug-2023,Childrens Services,PHS GROUP PLC,Childrens Services,-1368.69,Hygiene Services,2324P05_CR00011,01629322
Sandwell Metropolitan Borough Council,http://www.sandwell.gov.uk/info/200202/performance_and_spending/1079/payments_over_500,01-Aug-2023,Childrens Services,ABIGAIL D'AMORE ASSOCIATES,Childrens Services,26250.00,Externally Purchased Professional Services ,2324P05_CR00012,162300
Sandwell Metropolitan Borough Council,http://www.sandwell.gov.uk/info/200202/performance_and_spending/1079/payments_over_500,01-Aug-2023,Childrens Services,ACCESS UK LTD,Childrens Services,750.61,ICT ,2324P05_CR00013,133607
Sandwell Metropolitan Borough Council,http://www.sandwell.gov.uk/info/200202/performance_and_spending/1079/payments_over_500,01-Aug-2023,Childrens Services,AMP BIOMASS FUEL LTD T/A AMP CLEAN ENERGY,Childrens Services,3447.00,Ingestre Hall Arts Centre.Energy Costs-Bio Energy Costs,2324P05_CR00014,128761
Sandwell Metropolitan Borough Council,http://www.sandwell.gov.uk/info/200202/performance_and_spending/1079/payments_over_500,08-Aug-2023,Childrens Services,APD PRINT & DESIGN,Childrens Services,3120.00,"Printing, Stationery & General Office Expenses",2324P05_CR00015,49454
Sandwell Metropolitan Borough Council,http://www.sandwell.gov.uk/info/200202/performance_and_spending/1079/payments_over_500,08-Aug-2023,Childrens Services,APD PRINT & DESIGN,Childrens Services,500.00,"Printing, Stationery & General Office Expenses",2324P05_CR00016,49454
Sandwell Metropolitan Borough Council,http://www.sandwell.gov.uk/info/200202/performance_and_spending/1079/payments_over_500,01-Aug-2023,Childrens Services,ASSOCIATION OF ADULT EDUCATION AND TRAINING ORGANISATIONS,Childrens Services,945.00,Subscriptions,2324P05_CR00017,3837
Sandwell Metropolitan Borough Council,http://www.sandwell.gov.uk/info/200202/performance_and_spending/1079/payments_over_500,01-Aug-2023,Childrens Services,AVANTI GAS LIMITED,Childrens Services,1608.26,Gas,2324P05_CR00018,60069
Sandwell Metropolitan Borough Council,http://www.sandwell.gov.uk/info/200202/performance_and_spending/1079/payments_over_500,01-Aug-2023,Childrens Services,BCH PROPERTY LIMITED,Childrens Services,1166.76,Rents,2324P05_CR00019,01011861
Sandwell Metropolitan Borough Council,http://www.sandwell.gov.uk/info/200202/performance_and_spending/1079/payments_over_500,01-Aug-2023,Childrens Services,BCH PROPERTY LIMITED,Childrens Services,1283.52,Rents,2324P05_CR00020,01011861
Sandwell Metropolitan Borough Council,http://www.sandwell.gov.uk/info/200202/performance_and_spending/1079/payments_over_500,01-Aug-2023,Childrens Services,BCH PROPERTY LIMITED,Childrens Services,1283.52,Rents,2324P05_CR00021,01011861
Sandwell Metropolitan Borough Council,http://www.sandwell.gov.uk/info/200202/performance_and_spending/1079/payments_over_500,01-Aug-2023,Childrens Services,BCH PROPERTY LIMITED,Childrens Services,1295.73,Rents,2324P05_CR00022,01011861
Sandwell Metropolitan Borough Council,http://www.sandwell.gov.uk/info/200202/performance_and_spending/1079/payments_over_500,01-Aug-2023,Childrens Services,BCH PROPERTY LIMITED,Childrens Services,1166.76,Rents,2324P05_CR00023,01011861
Sandwell Metropolitan Borough Council,http://www.sandwell.gov.uk/info/200202/performance_and_spending/1079/payments_over_500,01-Aug-2023,Childrens Services,BCH PROPERTY LIMITED,Childrens Services,840.00,Rents,2324P05_CR00024,01011861
Sandwell Metropolitan Borough Council,http://www.sandwell.gov.uk/info/200202/performance_and_spending/1079/payments_over_500,01-Aug-2023,Childrens Services,BIDFOOD,Childrens Services,561.00,Catering Provisions,2324P05_CR00025,164984
Sandwell Metropolitan Borough Council,http://www.sandwell.gov.uk/info/200202/performance_and_spending/1079/payments_over_500,01-Aug-2023,Childrens Services,BIRMINGHAM CITY COUNCIL,Childrens Services,3630.00,External Contract Hire,2324P05_CR00026,01622521
Sandwell Metropolitan Borough Council,http://www.sandwell.gov.uk/info/200202/performance_and_spending/1079/payments_over_500,07-Aug-2023,Childrens Services,BRITISH GAS BUSINESS,Childrens Services,562.84,Gas,2324P05_CR00027,01735076
Sandwell Metropolitan Borough Council,http://www.sandwell.gov.uk/info/200202/performance_and_spending/1079/payments_over_500,01-Aug-2023,Childrens Services,BUFFET EXPRESS,Childrens Services,1425.00,Catering Provisions,2324P05_CR00028,01730518
Sandwell Metropolitan Borough Council,http://www.sandwell.gov.uk/info/200202/performance_and_spending/1079/payments_over_500,01-Aug-2023,Childrens Services,C & K CAREERS LTD,Childrens Services,508.00,Licences,2324P05_CR00029,108663
Sandwell Metropolitan Borough Council,http://www.sandwell.gov.uk/info/200202/performance_and_spending/1079/payments_over_500,01-Aug-2023,Childrens Services,CDW LIMITED,Childrens Services,653.26,ICT ,2324P05_CR00030,140946
Sandwell Metropolitan Borough Council,http://www.sandwell.gov.uk/info/200202/performance_and_spending/1079/payments_over_500,01-Aug-2023,Childrens Services,CHRISTIAN EDUCATION & RE TODAY SERVICES,Childrens Services,2740.00,Externally Purchased Professional Services ,2324P05_CR00031,15016
Sandwell Metropolitan Borough Council,http://www.sandwell.gov.uk/info/200202/performance_and_spending/1079/payments_over_500,01-Aug-2023,Childrens Services,CITRON HYGIENE UK LTD,Childrens Services,922.92,Hygiene Services,2324P05_CR00032,140849
Sandwell Metropolitan Borough Council,http://www.sandwell.gov.uk/info/200202/performance_and_spending/1079/payments_over_500,14-Aug-2023,Childrens Services,CLEANIT CLEANING SERVICES,Childrens Services,702.00,Agency Staff,2324P05_CR00033,166301
Sandwell Metropolitan Borough Council,http://www.sandwell.gov.uk/info/200202/performance_and_spending/1079/payments_over_500,01-Aug-2023,Childrens Services,CORONA ENERGY RETAIL 2 LIMITED,Childrens Services,538.84,Gas,2324P05_CR00034,118395
Sandwell Metropolitan Borough Council,http://www.sandwell.gov.uk/info/200202/performance_and_spending/1079/payments_over_500,01-Aug-2023,Childrens Services,CREATIVE ACTIVE LIVES CIC,Childrens Services,1200.00,Externally Purchased Professional Services ,2324P05_CR00035,138641
Sandwell Metropolitan Borough Council,http://www.sandwell.gov.uk/info/200202/performance_and_spending/1079/payments_over_500,01-Aug-2023,Childrens Services,CUSTODIAN GROUP LTD,Childrens Services,630.00,Rents,2324P05_CR00036,151637
Sandwell Metropolitan Borough Council,http://www.sandwell.gov.uk/info/200202/performance_and_spending/1079/payments_over_500,01-Aug-2023,Childrens Services,CUSTODIAN GROUP LTD,Childrens Services,630.00,Rents,2324P05_CR00037,151637
Sandwell Metropolitan Borough Council,http://www.sandwell.gov.uk/info/200202/performance_and_spending/1079/payments_over_500,01-Aug-2023,Childrens Services,CUSTODIAN GROUP LTD,Childrens Services,630.00,Rents,2324P05_CR00038,151637
Sandwell Metropolitan Borough Council,http://www.sandwell.gov.uk/info/200202/performance_and_spending/1079/payments_over_500,01-Aug-2023,Childrens Services,CUSTODIAN GROUP LTD,Childrens Services,630.00,Rents,2324P05_CR00039,151637
Sandwell Metropolitan Borough Council,http://www.sandwell.gov.uk/info/200202/performance_and_spending/1079/payments_over_500,01-Aug-2023,Childrens Services,CUSTODIAN GROUP LTD,Childrens Services,630.00,Rents,2324P05_CR00040,151637
Sandwell Metropolitan Borough Council,http://www.sandwell.gov.uk/info/200202/performance_and_spending/1079/payments_over_500,01-Aug-2023,Childrens Services,CUSTODIAN GROUP LTD,Childrens Services,630.00,Rents,2324P05_CR00041,151637
Sandwell Metropolitan Borough Council,http://www.sandwell.gov.uk/info/200202/performance_and_spending/1079/payments_over_500,01-Aug-2023,Childrens Services,CUSTODIAN GROUP LTD,Childrens Services,630.00,Rents,2324P05_CR00042,151637
Sandwell Metropolitan Borough Council,http://www.sandwell.gov.uk/info/200202/performance_and_spending/1079/payments_over_500,01-Aug-2023,Childrens Services,CUSTODIAN GROUP LTD,Childrens Services,630.00,Rents,2324P05_CR00043,151637
Sandwell Metropolitan Borough Council,http://www.sandwell.gov.uk/info/200202/performance_and_spending/1079/payments_over_500,01-Aug-2023,Childrens Services,CUSTODIAN GROUP LTD,Childrens Services,630.00,Rents,2324P05_CR00044,151637
Sandwell Metropolitan Borough Council,http://www.sandwell.gov.uk/info/200202/performance_and_spending/1079/payments_over_500,01-Aug-2023,Childrens Services,CUSTODIAN GROUP LTD,Childrens Services,630.00,Rents,2324P05_CR00045,151637
Sandwell Metropolitan Borough Council,http://www.sandwell.gov.uk/info/200202/performance_and_spending/1079/payments_over_500,06-Aug-2023,Childrens Services,CUSTODIAN GROUP LTD,Childrens Services,630.00,Rents,2324P05_CR00046,151637
Sandwell Metropolitan Borough Council,http://www.sandwell.gov.uk/info/200202/performance_and_spending/1079/payments_over_500,06-Aug-2023,Childrens Services,CUSTODIAN GROUP LTD,Childrens Services,630.00,Rents,2324P05_CR00047,151637
Sandwell Metropolitan Borough Council,http://www.sandwell.gov.uk/info/200202/performance_and_spending/1079/payments_over_500,06-Aug-2023,Childrens Services,CUSTODIAN GROUP LTD,Childrens Services,630.00,Rents,2324P05_CR00048,151637
Sandwell Metropolitan Borough Council,http://www.sandwell.gov.uk/info/200202/performance_and_spending/1079/payments_over_500,06-Aug-2023,Childrens Services,CUSTODIAN GROUP LTD,Childrens Services,630.00,Rents,2324P05_CR00049,151637
Sandwell Metropolitan Borough Council,http://www.sandwell.gov.uk/info/200202/performance_and_spending/1079/payments_over_500,06-Aug-2023,Childrens Services,CUSTODIAN GROUP LTD,Childrens Services,630.00,Rents,2324P05_CR00050,151637
Sandwell Metropolitan Borough Council,http://www.sandwell.gov.uk/info/200202/performance_and_spending/1079/payments_over_500,09-Aug-2023,Childrens Services,CUSTODIAN GROUP LTD,Childrens Services,630.00,Rents,2324P05_CR00051,151637
Sandwell Metropolitan Borough Council,http://www.sandwell.gov.uk/info/200202/performance_and_spending/1079/payments_over_500,09-Aug-2023,Childrens Services,CUSTODIAN GROUP LTD,Childrens Services,630.00,Rents,2324P05_CR00052,151637
Sandwell Metropolitan Borough Council,http://www.sandwell.gov.uk/info/200202/performance_and_spending/1079/payments_over_500,09-Aug-2023,Childrens Services,CUSTODIAN GROUP LTD,Childrens Services,630.00,Rents,2324P05_CR00053,151637
Sandwell Metropolitan Borough Council,http://www.sandwell.gov.uk/info/200202/performance_and_spending/1079/payments_over_500,09-Aug-2023,Childrens Services,CUSTODIAN GROUP LTD,Childrens Services,630.00,Rents,2324P05_CR00054,151637
Sandwell Metropolitan Borough Council,http://www.sandwell.gov.uk/info/200202/performance_and_spending/1079/payments_over_500,09-Aug-2023,Childrens Services,CUSTODIAN GROUP LTD,Childrens Services,630.00,Rents,2324P05_CR00055,151637
Sandwell Metropolitan Borough Council,http://www.sandwell.gov.uk/info/200202/performance_and_spending/1079/payments_over_500,09-Aug-2023,Childrens Services,CUSTODIAN GROUP LTD,Childrens Services,630.00,Rents,2324P05_CR00056,151637
Sandwell Metropolitan Borough Council,http://www.sandwell.gov.uk/info/200202/performance_and_spending/1079/payments_over_500,01-Aug-2023,Childrens Services,CUSTODIAN GROUP LTD,Childrens Services,630.00,Rents,2324P05_CR00057,151637
Sandwell Metropolitan Borough Council,http://www.sandwell.gov.uk/info/200202/performance_and_spending/1079/payments_over_500,01-Aug-2023,Childrens Services,CUSTODIAN GROUP LTD,Childrens Services,630.00,Rents,2324P05_CR00058,151637
Sandwell Metropolitan Borough Council,http://www.sandwell.gov.uk/info/200202/performance_and_spending/1079/payments_over_500,01-Aug-2023,Childrens Services,CUSTODIAN GROUP LTD,Childrens Services,630.00,Rents,2324P05_CR00059,151637
Sandwell Metropolitan Borough Council,http://www.sandwell.gov.uk/info/200202/performance_and_spending/1079/payments_over_500,01-Aug-2023,Childrens Services,CUSTODIAN GROUP LTD,Childrens Services,630.00,Rents,2324P05_CR00060,151637
Sandwell Metropolitan Borough Council,http://www.sandwell.gov.uk/info/200202/performance_and_spending/1079/payments_over_500,01-Aug-2023,Childrens Services,CUSTODIAN GROUP LTD,Childrens Services,630.00,Rents,2324P05_CR00061,151637
Sandwell Metropolitan Borough Council,http://www.sandwell.gov.uk/info/200202/performance_and_spending/1079/payments_over_500,01-Aug-2023,Childrens Services,CUSTODIAN GROUP LTD,Childrens Services,630.00,Rents,2324P05_CR00062,151637
Sandwell Metropolitan Borough Council,http://www.sandwell.gov.uk/info/200202/performance_and_spending/1079/payments_over_500,01-Aug-2023,Childrens Services,DIGBETH DINING CLUB CIC,Childrens Services,1050.00,Externally Purchased Professional Services ,2324P05_CR00063,153646
Sandwell Metropolitan Borough Council,http://www.sandwell.gov.uk/info/200202/performance_and_spending/1079/payments_over_500,01-Aug-2023,Childrens Services,DIGBETH DINING CLUB CIC,Childrens Services,4320.00,Externally Purchased Professional Services ,2324P05_CR00064,153646
Sandwell Metropolitan Borough Council,http://www.sandwell.gov.uk/info/200202/performance_and_spending/1079/payments_over_500,01-Aug-2023,Childrens Services,DIRECTION TRAINING & MANAGEMENT,Childrens Services,500.00,Externally Purchased Professional Services ,2324P05_CR00065,01727395
Sandwell Metropolitan Borough Council,http://www.sandwell.gov.uk/info/200202/performance_and_spending/1079/payments_over_500,01-Aug-2023,Childrens Services,DROACH TRAVEL LTD,Childrens Services,62044.48,Public Transport,2324P05_CR00066,06002707
Sandwell Metropolitan Borough Council,http://www.sandwell.gov.uk/info/200202/performance_and_spending/1079/payments_over_500,01-Aug-2023,Childrens Services,DROACH TRAVEL LTD,Childrens Services,62044.48,Public Transport,2324P05_CR00067,06002707
Sandwell Metropolitan Borough Council,http://www.sandwell.gov.uk/info/200202/performance_and_spending/1079/payments_over_500,01-Aug-2023,Childrens Services,EAGLE DESIGN LIMITED,Childrens Services,7500.00,Advertising & Publicity,2324P05_CR00068,1932
Sandwell Metropolitan Borough Council,http://www.sandwell.gov.uk/info/200202/performance_and_spending/1079/payments_over_500,01-Aug-2023,Childrens Services,EON NEXT ENERGY LTD,Childrens Services,784.36,Electricity,2324P05_CR00069,149566
Sandwell Metropolitan Borough Council,http://www.sandwell.gov.uk/info/200202/performance_and_spending/1079/payments_over_500,08-Aug-2023,Childrens Services,GBS PROCURE LIMITED,Childrens Services,4446.37,Consultancy,2324P05_CR00070,165756
Sandwell Metropolitan Borough Council,http://www.sandwell.gov.uk/info/200202/performance_and_spending/1079/payments_over_500,01-Aug-2023,Childrens Services,GILANI ENTERPRISES LIMITED,Childrens Services,3733.33,Rents,2324P05_CR00071,2696
Sandwell Metropolitan Borough Council,http://www.sandwell.gov.uk/info/200202/performance_and_spending/1079/payments_over_500,01-Aug-2023,Childrens Services,GILANI ENTERPRISES LIMITED,Childrens Services,3733.33,Rents,2324P05_CR00072,2696
Sandwell Metropolitan Borough Council,http://www.sandwell.gov.uk/info/200202/performance_and_spending/1079/payments_over_500,01-Aug-2023,Childrens Services,GILANI ENTERPRISES LIMITED,Childrens Services,3733.33,Rents,2324P05_CR00073,2696
Sandwell Metropolitan Borough Council,http://www.sandwell.gov.uk/info/200202/performance_and_spending/1079/payments_over_500,01-Aug-2023,Childrens Services,GILANI ENTERPRISES LIMITED,Childrens Services,3733.33,Rents,2324P05_CR00074,2696
Sandwell Metropolitan Borough Council,http://www.sandwell.gov.uk/info/200202/performance_and_spending/1079/payments_over_500,01-Aug-2023,Childrens Services,GILANI ENTERPRISES LIMITED,Childrens Services,3733.33,Rents,2324P05_CR00075,2696
Sandwell Metropolitan Borough Council,http://www.sandwell.gov.uk/info/200202/performance_and_spending/1079/payments_over_500,01-Aug-2023,Childrens Services,GILANI ENTERPRISES LIMITED,Childrens Services,3733.33,Rents,2324P05_CR00076,2696
Sandwell Metropolitan Borough Council,http://www.sandwell.gov.uk/info/200202/performance_and_spending/1079/payments_over_500,01-Aug-2023,Childrens Services,GILANI ENTERPRISES LIMITED,Childrens Services,5600.00,Rents,2324P05_CR00077,2696
Sandwell Metropolitan Borough Council,http://www.sandwell.gov.uk/info/200202/performance_and_spending/1079/payments_over_500,01-Aug-2023,Childrens Services,GILANI ENTERPRISES LIMITED,Childrens Services,5600.00,Rents,2324P05_CR00078,2696
Sandwell Metropolitan Borough Council,http://www.sandwell.gov.uk/info/200202/performance_and_spending/1079/payments_over_500,01-Aug-2023,Childrens Services,GILANI ENTERPRISES LIMITED,Childrens Services,500.00,Rents,2324P05_CR00079,2696
Sandwell Metropolitan Borough Council,http://www.sandwell.gov.uk/info/200202/performance_and_spending/1079/payments_over_500,01-Aug-2023,Childrens Services,GILANI ENTERPRISES LIMITED,Childrens Services,1933.33,Rents,2324P05_CR00080,2696
Sandwell Metropolitan Borough Council,http://www.sandwell.gov.uk/info/200202/performance_and_spending/1079/payments_over_500,01-Aug-2023,Childrens Services,GILANI ENTERPRISES LIMITED,Childrens Services,625.00,Rents,2324P05_CR00081,2696
Sandwell Metropolitan Borough Council,http://www.sandwell.gov.uk/info/200202/performance_and_spending/1079/payments_over_500,01-Aug-2023,Childrens Services,GILANI ENTERPRISES LIMITED,Childrens Services,700.00,Rents,2324P05_CR00082,2696
Sandwell Metropolitan Borough Council,http://www.sandwell.gov.uk/info/200202/performance_and_spending/1079/payments_over_500,01-Aug-2023,Childrens Services,GILANI ENTERPRISES LIMITED,Childrens Services,1400.00,Rents,2324P05_CR00083,2696
Sandwell Metropolitan Borough Council,http://www.sandwell.gov.uk/info/200202/performance_and_spending/1079/payments_over_500,01-Aug-2023,Childrens Services,GILANI ENTERPRISES LIMITED,Childrens Services,2400.00,Rents,2324P05_CR00084,2696
Sandwell Metropolitan Borough Council,http://www.sandwell.gov.uk/info/200202/performance_and_spending/1079/payments_over_500,09-Aug-2023,Childrens Services,GREEN DESTINATIONS LTD,Childrens Services,67707.88,Public Transport,2324P05_CR00085,109275
Sandwell Metropolitan Borough Council,http://www.sandwell.gov.uk/info/200202/performance_and_spending/1079/payments_over_500,09-Aug-2023,Childrens Services,GREEN DESTINATIONS LTD,Childrens Services,68554.27,Public Transport,2324P05_CR00086,109275
Sandwell Metropolitan Borough Council,http://www.sandwell.gov.uk/info/200202/performance_and_spending/1079/payments_over_500,09-Aug-2023,Childrens Services,GREEN DESTINATIONS LTD,Childrens Services,66111.88,Public Transport,2324P05_CR00087,109275
Sandwell Metropolitan Borough Council,http://www.sandwell.gov.uk/info/200202/performance_and_spending/1079/payments_over_500,01-Aug-2023,Childrens Services,GRESHAM OFFICE FURNITURE LTD,Childrens Services,1811.70,Equipment & Furniture ,2324P05_CR00088,93465
Sandwell Metropolitan Borough Council,http://www.sandwell.gov.uk/info/200202/performance_and_spending/1079/payments_over_500,08-Aug-2023,Childrens Services,GWYNEDD COUNCIL,Childrens Services,765.00,Waste Disposal Charges,2324P05_CR00089,01513572
Sandwell Metropolitan Borough Council,http://www.sandwell.gov.uk/info/200202/performance_and_spending/1079/payments_over_500,02-Aug-2023,Childrens Services,HER MAJESTYS PRISON AND PROBATION SERVICE,Childrens Services,9840.00,Other Establishments,2324P05_CR00090,134815
Sandwell Metropolitan Borough Council,http://www.sandwell.gov.uk/info/200202/performance_and_spending/1079/payments_over_500,02-Aug-2023,Childrens Services,HER MAJESTYS PRISON AND PROBATION SERVICE,Childrens Services,1668.00,Other Establishments,2324P05_CR00091,134815
Sandwell Metropolitan Borough Council,http://www.sandwell.gov.uk/info/200202/performance_and_spending/1079/payments_over_500,02-Aug-2023,Childrens Services,HER MAJESTYS PRISON AND PROBATION SERVICE,Childrens Services,10168.00,Other Establishments,2324P05_CR00092,134815
Sandwell Metropolitan Borough Council,http://www.sandwell.gov.uk/info/200202/performance_and_spending/1079/payments_over_500,02-Aug-2023,Childrens Services,HER MAJESTYS PRISON AND PROBATION SERVICE,Childrens Services,10168.00,Other Establishments,2324P05_CR00093,134815
Sandwell Metropolitan Borough Council,http://www.sandwell.gov.uk/info/200202/performance_and_spending/1079/payments_over_500,02-Aug-2023,Childrens Services,HER MAJESTYS PRISON AND PROBATION SERVICE,Childrens Services,25854.00,Other Establishments,2324P05_CR00094,134815
Sandwell Metropolitan Borough Council,http://www.sandwell.gov.uk/info/200202/performance_and_spending/1079/payments_over_500,02-Aug-2023,Childrens Services,HER MAJESTYS PRISON AND PROBATION SERVICE,Childrens Services,10168.00,Other Establishments,2324P05_CR00095,134815
Sandwell Metropolitan Borough Council,http://www.sandwell.gov.uk/info/200202/performance_and_spending/1079/payments_over_500,02-Aug-2023,Childrens Services,HER MAJESTYS PRISON AND PROBATION SERVICE,Childrens Services,22518.00,Other Establishments,2324P05_CR00096,134815
Sandwell Metropolitan Borough Council,http://www.sandwell.gov.uk/info/200202/performance_and_spending/1079/payments_over_500,02-Aug-2023,Childrens Services,HER MAJESTYS PRISON AND PROBATION SERVICE,Childrens Services,3608.00,Other Establishments,2324P05_CR00097,134815
Sandwell Metropolitan Borough Council,http://www.sandwell.gov.uk/info/200202/performance_and_spending/1079/payments_over_500,02-Aug-2023,Childrens Services,HER MAJESTYS PRISON AND PROBATION SERVICE,Childrens Services,3608.00,Other Establishments,2324P05_CR00098,134815
Sandwell Metropolitan Borough Council,http://www.sandwell.gov.uk/info/200202/performance_and_spending/1079/payments_over_500,02-Aug-2023,Childrens Services,HER MAJESTYS PRISON AND PROBATION SERVICE,Childrens Services,8528.00,Other Establishments,2324P05_CR00099,134815
Sandwell Metropolitan Borough Council,http://www.sandwell.gov.uk/info/200202/performance_and_spending/1079/payments_over_500,02-Aug-2023,Childrens Services,HER MAJESTYS PRISON AND PROBATION SERVICE,Childrens Services,5004.00,Other Establishments,2324P05_CR00100,134815
Sandwell Metropolitan Borough Council,http://www.sandwell.gov.uk/info/200202/performance_and_spending/1079/payments_over_500,02-Aug-2023,Childrens Services,HER MAJESTYS PRISON AND PROBATION SERVICE,Childrens Services,25020.00,Other Establishments,2324P05_CR00101,134815
Sandwell Metropolitan Borough Council,http://www.sandwell.gov.uk/info/200202/performance_and_spending/1079/payments_over_500,02-Aug-2023,Childrens Services,HER MAJESTYS PRISON AND PROBATION SERVICE,Childrens Services,8200.00,Other Establishments,2324P05_CR00102,134815
Sandwell Metropolitan Borough Council,http://www.sandwell.gov.uk/info/200202/performance_and_spending/1079/payments_over_500,02-Aug-2023,Childrens Services,HER MAJESTYS PRISON AND PROBATION SERVICE,Childrens Services,9840.00,Other Establishments,2324P05_CR00103,134815
Sandwell Metropolitan Borough Council,http://www.sandwell.gov.uk/info/200202/performance_and_spending/1079/payments_over_500,02-Aug-2023,Childrens Services,HER MAJESTYS PRISON AND PROBATION SERVICE,Childrens Services,25020.00,Other Establishments,2324P05_CR00104,134815
Sandwell Metropolitan Borough Council,http://www.sandwell.gov.uk/info/200202/performance_and_spending/1079/payments_over_500,02-Aug-2023,Childrens Services,HER MAJESTYS PRISON AND PROBATION SERVICE,Childrens Services,9840.00,Other Establishments,2324P05_CR00105,134815
Sandwell Metropolitan Borough Council,http://www.sandwell.gov.uk/info/200202/performance_and_spending/1079/payments_over_500,01-Aug-2023,Childrens Services,INGESTRE ORANGERY AND GARDENS,Childrens Services,650.00,Materials & Consumables,2324P05_CR00106,127331
Sandwell Metropolitan Borough Council,http://www.sandwell.gov.uk/info/200202/performance_and_spending/1079/payments_over_500,01-Aug-2023,Childrens Services,INGESTRE ORANGERY AND GARDENS,Childrens Services,650.00,Materials & Consumables,2324P05_CR00107,127331
Sandwell Metropolitan Borough Council,http://www.sandwell.gov.uk/info/200202/performance_and_spending/1079/payments_over_500,01-Aug-2023,Childrens Services,IRON MAIDENS COMMERCIAL LAUNDRY LIMITED,Childrens Services,563.18,Laundry,2324P05_CR00108,124628
Sandwell Metropolitan Borough Council,http://www.sandwell.gov.uk/info/200202/performance_and_spending/1079/payments_over_500,11-Aug-2023,Childrens Services,LEARNING INTO EMPLOYMENT ACADEMY LTD,Childrens Services,873.83,Externally Purchased Professional Services ,2324P05_CR00109,147427
Sandwell Metropolitan Borough Council,http://www.sandwell.gov.uk/info/200202/performance_and_spending/1079/payments_over_500,14-Aug-2023,Childrens Services,LEARNING INTO EMPLOYMENT ACADEMY LTD,Childrens Services,873.83,Externally Purchased Professional Services ,2324P05_CR00110,147427
Sandwell Metropolitan Borough Council,http://www.sandwell.gov.uk/info/200202/performance_and_spending/1079/payments_over_500,01-Aug-2023,Childrens Services,LOCAL EDUCATION AND DEVELOPMENT,Childrens Services,1413.75,Discretionary Awards,2324P05_CR00111,148259
Sandwell Metropolitan Borough Council,http://www.sandwell.gov.uk/info/200202/performance_and_spending/1079/payments_over_500,01-Aug-2023,Childrens Services,LYNG PRIMARY SCHOOL,Childrens Services,4750.00,Conference Expenses,2324P05_CR00112,21030682
Sandwell Metropolitan Borough Council,http://www.sandwell.gov.uk/info/200202/performance_and_spending/1079/payments_over_500,17-Aug-2023,Childrens Services,MURRAY HALL COMMUNITY TRUST,Childrens Services,690.00,Hire of Facilities,2324P05_CR00113,01627284
Sandwell Metropolitan Borough Council,http://www.sandwell.gov.uk/info/200202/performance_and_spending/1079/payments_over_500,01-Aug-2023,Childrens Services,NEWAVE LTD,Childrens Services,2332.70,Agency Staff,2324P05_CR00114,101666
Sandwell Metropolitan Borough Council,http://www.sandwell.gov.uk/info/200202/performance_and_spending/1079/payments_over_500,01-Aug-2023,Childrens Services,NEWAVE LTD,Childrens Services,2974.00,Agency Staff,2324P05_CR00115,101666
Sandwell Metropolitan Borough Council,http://www.sandwell.gov.uk/info/200202/performance_and_spending/1079/payments_over_500,08-Aug-2023,Childrens Services,NEWVISION PROMOTIONS LTD,Childrens Services,2100.00,Advertising & Publicity,2324P05_CR00116,01423582
Sandwell Metropolitan Borough Council,http://www.sandwell.gov.uk/info/200202/performance_and_spending/1079/payments_over_500,14-Aug-2023,Childrens Services,NORTH SMETHWICK DEVELOPMENT TRUST,Childrens Services,525.00,Hire of Facilities,2324P05_CR00117,01346623
Sandwell Metropolitan Borough Council,http://www.sandwell.gov.uk/info/200202/performance_and_spending/1079/payments_over_500,01-Aug-2023,Childrens Services,NOTTINGHAMSHIRE COUNTY COUNCIL,Childrens Services,1300.00,External Contract Hire,2324P05_CR00118,01218759
Sandwell Metropolitan Borough Council,http://www.sandwell.gov.uk/info/200202/performance_and_spending/1079/payments_over_500,01-Aug-2023,Childrens Services,ONE 4 YOU SERVICES LTD,Childrens Services,121995.32,Public Transport,2324P05_CR00119,81204
Sandwell Metropolitan Borough Council,http://www.sandwell.gov.uk/info/200202/performance_and_spending/1079/payments_over_500,01-Aug-2023,Childrens Services,ONE 4 YOU SERVICES LTD,Childrens Services,121995.32,Public Transport,2324P05_CR00120,81204
Sandwell Metropolitan Borough Council,http://www.sandwell.gov.uk/info/200202/performance_and_spending/1079/payments_over_500,01-Aug-2023,Childrens Services,ONE 4 YOU SERVICES LTD,Childrens Services,121995.32,Public Transport,2324P05_CR00121,81204
Sandwell Metropolitan Borough Council,http://www.sandwell.gov.uk/info/200202/performance_and_spending/1079/payments_over_500,14-Aug-2023,Childrens Services,ONE 4 YOU SERVICES LTD,Childrens Services,8792.31,Public Transport,2324P05_CR00122,81204
Sandwell Metropolitan Borough Council,http://www.sandwell.gov.uk/info/200202/performance_and_spending/1079/payments_over_500,14-Aug-2023,Childrens Services,ONE 4 YOU SERVICES LTD,Childrens Services,8792.31,Public Transport,2324P05_CR00123,81204
Sandwell Metropolitan Borough Council,http://www.sandwell.gov.uk/info/200202/performance_and_spending/1079/payments_over_500,01-Aug-2023,Childrens Services,OUTDOOR EDUCATION ADVISERS PANEL,Childrens Services,640.00,Subscriptions,2324P05_CR00124,1080
Sandwell Metropolitan Borough Council,http://www.sandwell.gov.uk/info/200202/performance_and_spending/1079/payments_over_500,01-Aug-2023,Childrens Services,PHS GROUP PLC,Childrens Services,1527.24,Hygiene Services,2324P05_CR00125,01629322
Sandwell Metropolitan Borough Council,http://www.sandwell.gov.uk/info/200202/performance_and_spending/1079/payments_over_500,01-Aug-2023,Childrens Services,PHS GROUP PLC,Childrens Services,939.12,Hygiene Services,2324P05_CR00126,01629322
Sandwell Metropolitan Borough Council,http://www.sandwell.gov.uk/info/200202/performance_and_spending/1079/payments_over_500,01-Aug-2023,Childrens Services,PREMIER PRINT & PROMOTIONS LIMITED,Childrens Services,1200.00,"Printing, Stationery & General Office Expenses",2324P05_CR00127,128540
Sandwell Metropolitan Borough Council,http://www.sandwell.gov.uk/info/200202/performance_and_spending/1079/payments_over_500,01-Aug-2023,Childrens Services,PREMIER PRINT & PROMOTIONS LIMITED,Childrens Services,1225.00,"Printing, Stationery & General Office Expenses",2324P05_CR00128,128540
Sandwell Metropolitan Borough Council,http://www.sandwell.gov.uk/info/200202/performance_and_spending/1079/payments_over_500,01-Aug-2023,Childrens Services,PROSPECTS SERVICES LIMITED,Childrens Services,4089.92,Grant Payments,2324P05_CR00129,01721288
Sandwell Metropolitan Borough Council,http://www.sandwell.gov.uk/info/200202/performance_and_spending/1079/payments_over_500,01-Aug-2023,Childrens Services,Q3 ACADEMY,Childrens Services,600.00,Equipment & Furniture ,2324P05_CR00130,38084
Sandwell Metropolitan Borough Council,http://www.sandwell.gov.uk/info/200202/performance_and_spending/1079/payments_over_500,01-Aug-2023,Childrens Services,RIC HOMES LIMITED ON BEHALF OF HHK HOLDING LIMITED,Childrens Services,3000.00,Externally Purchased Professional Services ,2324P05_CR00131,164715
Sandwell Metropolitan Borough Council,http://www.sandwell.gov.uk/info/200202/performance_and_spending/1079/payments_over_500,08-Aug-2023,Childrens Services,S.C.V.O.,Childrens Services,2000.00,Grants,2324P05_CR00132,109813
Sandwell Metropolitan Borough Council,http://www.sandwell.gov.uk/info/200202/performance_and_spending/1079/payments_over_500,01-Aug-2023,Childrens Services,SANDWELL CHILDREN'S TRUST,Childrens Services,5705769.23,Other Establishments,2324P05_CR00133,133302
Sandwell Metropolitan Borough Council,http://www.sandwell.gov.uk/info/200202/performance_and_spending/1079/payments_over_500,31-Aug-2023,Childrens Services,SANDWELL CHILDREN'S TRUST,Childrens Services,1872072.50,Other Establishments,2324P05_CR00134,133302
Sandwell Metropolitan Borough Council,http://www.sandwell.gov.uk/info/200202/performance_and_spending/1079/payments_over_500,01-Aug-2023,Childrens Services,SANDWELL PARENTS FOR DISABLED CHILDREN,Childrens Services,6000.00,Grant Payments,2324P05_CR00135,70991
Sandwell Metropolitan Borough Council,http://www.sandwell.gov.uk/info/200202/performance_and_spending/1079/payments_over_500,01-Aug-2023,Childrens Services,SANDWELL PARENTS FOR DISABLED CHILDREN,Childrens Services,6000.00,Grant Payments,2324P05_CR00136,70991
Sandwell Metropolitan Borough Council,http://www.sandwell.gov.uk/info/200202/performance_and_spending/1079/payments_over_500,01-Aug-2023,Childrens Services,SCHOOL LIFE LTD,Childrens Services,1000.00,ICT ,2324P05_CR00137,129190
Sandwell Metropolitan Borough Council,http://www.sandwell.gov.uk/info/200202/performance_and_spending/1079/payments_over_500,01-Aug-2023,Childrens Services,SHROPSHIRE COUNCIL,Childrens Services,11749.32,External Contract Hire,2324P05_CR00138,01030303
Sandwell Metropolitan Borough Council,http://www.sandwell.gov.uk/info/200202/performance_and_spending/1079/payments_over_500,01-Aug-2023,Childrens Services,SHROPSHIRE COUNCIL,Childrens Services,5948.80,External Contract Hire,2324P05_CR00139,01030303
Sandwell Metropolitan Borough Council,http://www.sandwell.gov.uk/info/200202/performance_and_spending/1079/payments_over_500,01-Aug-2023,Childrens Services,SIPS EDUCATION LTD,Childrens Services,875.00,Contract Payments,2324P05_CR00140,110784
Sandwell Metropolitan Borough Council,http://www.sandwell.gov.uk/info/200202/performance_and_spending/1079/payments_over_500,01-Aug-2023,Childrens Services,SKILLS WORK AND ENTERPRISE DEVELOPMENT AGENCY LTD,Childrens Services,500.00,Hire of Facilities,2324P05_CR00141,5092
Sandwell Metropolitan Borough Council,http://www.sandwell.gov.uk/info/200202/performance_and_spending/1079/payments_over_500,01-Aug-2023,Childrens Services,STAFFORDSHIRE COUNTY COUNCIL,Childrens Services,6580.48,External Contract Hire,2324P05_CR00142,01124861
Sandwell Metropolitan Borough Council,http://www.sandwell.gov.uk/info/200202/performance_and_spending/1079/payments_over_500,01-Aug-2023,Childrens Services,STAFFORDSHIRE COUNTY COUNCIL,Childrens Services,13278.72,External Contract Hire,2324P05_CR00143,01124861
Sandwell Metropolitan Borough Council,http://www.sandwell.gov.uk/info/200202/performance_and_spending/1079/payments_over_500,01-Aug-2023,Childrens Services,THE ALBION FOUNDATION,Childrens Services,1080.00,Hire of Facilities,2324P05_CR00144,21026659
Sandwell Metropolitan Borough Council,http://www.sandwell.gov.uk/info/200202/performance_and_spending/1079/payments_over_500,01-Aug-2023,Childrens Services,THE ALBION FOUNDATION,Childrens Services,1116.00,Hire of Facilities,2324P05_CR00145,21026659
Sandwell Metropolitan Borough Council,http://www.sandwell.gov.uk/info/200202/performance_and_spending/1079/payments_over_500,01-Aug-2023,Childrens Services,THE GIFT VOUCHER SHOP LIMITED,Childrens Services,735.00,Operational Services ,2324P05_CR00146,111545
Sandwell Metropolitan Borough Council,http://www.sandwell.gov.uk/info/200202/performance_and_spending/1079/payments_over_500,01-Aug-2023,Childrens Services,THE PRIORY PRIMARY,Childrens Services,3422.30,Rents,2324P05_CR00147,01746051
Sandwell Metropolitan Borough Council,http://www.sandwell.gov.uk/info/200202/performance_and_spending/1079/payments_over_500,01-Aug-2023,Childrens Services,TOPPS MANAGEMENT & SUPPORT SERVICES LTD,Childrens Services,996.94,Externally Purchased Professional Services ,2324P05_CR00148,68846
Sandwell Metropolitan Borough Council,http://www.sandwell.gov.uk/info/200202/performance_and_spending/1079/payments_over_500,01-Aug-2023,Childrens Services,TOPPS MANAGEMENT & SUPPORT SERVICES LTD,Childrens Services,996.94,Externally Purchased Professional Services ,2324P05_CR00149,68846
Sandwell Metropolitan Borough Council,http://www.sandwell.gov.uk/info/200202/performance_and_spending/1079/payments_over_500,01-Aug-2023,Childrens Services,TOPPS MANAGEMENT & SUPPORT SERVICES LTD,Childrens Services,996.94,Externally Purchased Professional Services ,2324P05_CR00150,68846
Sandwell Metropolitan Borough Council,http://www.sandwell.gov.uk/info/200202/performance_and_spending/1079/payments_over_500,01-Aug-2023,Childrens Services,TOPPS MANAGEMENT & SUPPORT SERVICES LTD,Childrens Services,996.94,Externally Purchased Professional Services ,2324P05_CR00151,68846
Sandwell Metropolitan Borough Council,http://www.sandwell.gov.uk/info/200202/performance_and_spending/1079/payments_over_500,01-Aug-2023,Childrens Services,TOPPS MANAGEMENT & SUPPORT SERVICES LTD,Childrens Services,996.94,Externally Purchased Professional Services ,2324P05_CR00152,68846
Sandwell Metropolitan Borough Council,http://www.sandwell.gov.uk/info/200202/performance_and_spending/1079/payments_over_500,01-Aug-2023,Childrens Services,TOPPS MANAGEMENT & SUPPORT SERVICES LTD,Childrens Services,996.94,Externally Purchased Professional Services ,2324P05_CR00153,68846
Sandwell Metropolitan Borough Council,http://www.sandwell.gov.uk/info/200202/performance_and_spending/1079/payments_over_500,01-Aug-2023,Childrens Services,TOPPS MANAGEMENT & SUPPORT SERVICES LTD,Childrens Services,996.94,Externally Purchased Professional Services ,2324P05_CR00154,68846
Sandwell Metropolitan Borough Council,http://www.sandwell.gov.uk/info/200202/performance_and_spending/1079/payments_over_500,01-Aug-2023,Childrens Services,TOPPS MANAGEMENT & SUPPORT SERVICES LTD,Childrens Services,996.94,Externally Purchased Professional Services ,2324P05_CR00155,68846
Sandwell Metropolitan Borough Council,http://www.sandwell.gov.uk/info/200202/performance_and_spending/1079/payments_over_500,01-Aug-2023,Childrens Services,TOPPS MANAGEMENT & SUPPORT SERVICES LTD,Childrens Services,996.94,Externally Purchased Professional Services ,2324P05_CR00156,68846
Sandwell Metropolitan Borough Council,http://www.sandwell.gov.uk/info/200202/performance_and_spending/1079/payments_over_500,01-Aug-2023,Childrens Services,TOPPS MANAGEMENT & SUPPORT SERVICES LTD,Childrens Services,996.94,Externally Purchased Professional Services ,2324P05_CR00157,68846
Sandwell Metropolitan Borough Council,http://www.sandwell.gov.uk/info/200202/performance_and_spending/1079/payments_over_500,01-Aug-2023,Childrens Services,TOPPS MANAGEMENT & SUPPORT SERVICES LTD,Childrens Services,996.94,Externally Purchased Professional Services ,2324P05_CR00158,68846
Sandwell Metropolitan Borough Council,http://www.sandwell.gov.uk/info/200202/performance_and_spending/1079/payments_over_500,01-Aug-2023,Childrens Services,TOPPS MANAGEMENT & SUPPORT SERVICES LTD,Childrens Services,996.94,Externally Purchased Professional Services ,2324P05_CR00159,68846
Sandwell Metropolitan Borough Council,http://www.sandwell.gov.uk/info/200202/performance_and_spending/1079/payments_over_500,01-Aug-2023,Childrens Services,TOPPS MANAGEMENT & SUPPORT SERVICES LTD,Childrens Services,996.94,Externally Purchased Professional Services ,2324P05_CR00160,68846
Sandwell Metropolitan Borough Council,http://www.sandwell.gov.uk/info/200202/performance_and_spending/1079/payments_over_500,01-Aug-2023,Childrens Services,TOPPS MANAGEMENT & SUPPORT SERVICES LTD,Childrens Services,996.94,Externally Purchased Professional Services ,2324P05_CR00161,68846
Sandwell Metropolitan Borough Council,http://www.sandwell.gov.uk/info/200202/performance_and_spending/1079/payments_over_500,01-Aug-2023,Childrens Services,TOPPS MANAGEMENT & SUPPORT SERVICES LTD,Childrens Services,996.94,Externally Purchased Professional Services ,2324P05_CR00162,68846
Sandwell Metropolitan Borough Council,http://www.sandwell.gov.uk/info/200202/performance_and_spending/1079/payments_over_500,01-Aug-2023,Childrens Services,TOPPS MANAGEMENT & SUPPORT SERVICES LTD,Childrens Services,996.94,Externally Purchased Professional Services ,2324P05_CR00163,68846
Sandwell Metropolitan Borough Council,http://www.sandwell.gov.uk/info/200202/performance_and_spending/1079/payments_over_500,01-Aug-2023,Childrens Services,TOPPS MANAGEMENT & SUPPORT SERVICES LTD,Childrens Services,996.94,Externally Purchased Professional Services ,2324P05_CR00164,68846
Sandwell Metropolitan Borough Council,http://www.sandwell.gov.uk/info/200202/performance_and_spending/1079/payments_over_500,01-Aug-2023,Childrens Services,TOPPS MANAGEMENT & SUPPORT SERVICES LTD,Childrens Services,996.94,Externally Purchased Professional Services ,2324P05_CR00165,68846
Sandwell Metropolitan Borough Council,http://www.sandwell.gov.uk/info/200202/performance_and_spending/1079/payments_over_500,01-Aug-2023,Childrens Services,TOPPS MANAGEMENT & SUPPORT SERVICES LTD,Childrens Services,996.94,Externally Purchased Professional Services ,2324P05_CR00166,68846
Sandwell Metropolitan Borough Council,http://www.sandwell.gov.uk/info/200202/performance_and_spending/1079/payments_over_500,01-Aug-2023,Childrens Services,TOPPS MANAGEMENT & SUPPORT SERVICES LTD,Childrens Services,996.94,Externally Purchased Professional Services ,2324P05_CR00167,68846
Sandwell Metropolitan Borough Council,http://www.sandwell.gov.uk/info/200202/performance_and_spending/1079/payments_over_500,01-Aug-2023,Childrens Services,TOTALENERGIES GAS & POWER LTD,Childrens Services,2407.72,Electricity,2324P05_CR00168,107605
Sandwell Metropolitan Borough Council,http://www.sandwell.gov.uk/info/200202/performance_and_spending/1079/payments_over_500,06-Aug-2023,Childrens Services,TOTALENERGIES GAS & POWER LTD,Childrens Services,1610.80,Electricity,2324P05_CR00169,107605
Sandwell Metropolitan Borough Council,http://www.sandwell.gov.uk/info/200202/performance_and_spending/1079/payments_over_500,14-Aug-2023,Childrens Services,TOTALENERGIES GAS & POWER LTD,Childrens Services,1335.13,Electricity,2324P05_CR00170,107605
Sandwell Metropolitan Borough Council,http://www.sandwell.gov.uk/info/200202/performance_and_spending/1079/payments_over_500,11-Aug-2023,Childrens Services,TOTALENERGIES GAS & POWER LTD,Childrens Services,536.69,Electricity,2324P05_CR00171,107605
Sandwell Metropolitan Borough Council,http://www.sandwell.gov.uk/info/200202/performance_and_spending/1079/payments_over_500,11-Aug-2023,Childrens Services,TOTALENERGIES GAS & POWER LTD,Childrens Services,894.83,Electricity,2324P05_CR00172,107605
Sandwell Metropolitan Borough Council,http://www.sandwell.gov.uk/info/200202/performance_and_spending/1079/payments_over_500,11-Aug-2023,Childrens Services,TOTALENERGIES GAS & POWER LTD,Childrens Services,540.18,Electricity,2324P05_CR00173,107605
Sandwell Metropolitan Borough Council,http://www.sandwell.gov.uk/info/200202/performance_and_spending/1079/payments_over_500,11-Aug-2023,Childrens Services,TOTALENERGIES GAS & POWER LTD,Childrens Services,624.87,Electricity,2324P05_CR00174,107605
Sandwell Metropolitan Borough Council,http://www.sandwell.gov.uk/info/200202/performance_and_spending/1079/payments_over_500,11-Aug-2023,Childrens Services,TOTALENERGIES GAS & POWER LTD,Childrens Services,1053.34,Electricity,2324P05_CR00175,107605
Sandwell Metropolitan Borough Council,http://www.sandwell.gov.uk/info/200202/performance_and_spending/1079/payments_over_500,06-Aug-2023,Childrens Services,TOTALENERGIES GAS & POWER LTD,Childrens Services,569.51,Electricity,2324P05_CR00176,107605
Sandwell Metropolitan Borough Council,http://www.sandwell.gov.uk/info/200202/performance_and_spending/1079/payments_over_500,01-Aug-2023,Childrens Services,TRH WALSALL LTD,Childrens Services,933.52,Rents,2324P05_CR00177,85648
Sandwell Metropolitan Borough Council,http://www.sandwell.gov.uk/info/200202/performance_and_spending/1079/payments_over_500,01-Aug-2023,Childrens Services,TRH WALSALL LTD,Childrens Services,1254.33,Rents,2324P05_CR00178,85648
Sandwell Metropolitan Borough Council,http://www.sandwell.gov.uk/info/200202/performance_and_spending/1079/payments_over_500,01-Aug-2023,Childrens Services,WMA COMMUNITY FITNESS CENTRE,Childrens Services,540.00,Hire of Facilities,2324P05_CR00179,141572
Sandwell Metropolitan Borough Council,http://www.sandwell.gov.uk/info/200202/performance_and_spending/1079/payments_over_500,02-Aug-2023,Childrens Services,BEN SEMP,Childrens Services,600.00,Externally Purchased Professional Services ,2324P05_CR00180,107250
Sandwell Metropolitan Borough Council,http://www.sandwell.gov.uk/info/200202/performance_and_spending/1079/payments_over_500,01-Aug-2023,Childrens Services,SAMANTHA STEATHAM - EDMUNDS,Childrens Services,1150.00,Externally Purchased Professional Services ,2324P05_CR00181,151908
Sandwell Metropolitan Borough Council,http://www.sandwell.gov.uk/info/200202/performance_and_spending/1079/payments_over_500,01-Aug-2023,Childrens Services,MARK LAMSDALE,Childrens Services,1000.00,"Printing, Stationery & General Office Expenses",2324P05_CR00182,26316
Sandwell Metropolitan Borough Council,http://www.sandwell.gov.uk/info/200202/performance_and_spending/1079/payments_over_500,22-Aug-2023,Childrens Services,REDACTED PERSONAL DATA,Childrens Services,866.70,External Contract Hire,2324P05_CR00183,REDACTED PERSONAL DATA
Sandwell Metropolitan Borough Council,http://www.sandwell.gov.uk/info/200202/performance_and_spending/1079/payments_over_500,22-Aug-2023,Childrens Services,REDACTED PERSONAL DATA,Childrens Services,685.00,External Contract Hire,2324P05_CR00184,REDACTED PERSONAL DATA
Sandwell Metropolitan Borough Council,http://www.sandwell.gov.uk/info/200202/performance_and_spending/1079/payments_over_500,17-Aug-2023,Childrens Services,HILL TOP COMMUNITY DEVELOPMENT ASSOCIATION,Childrens Services,2982.00,Grant Payments,2324P05_CR00185,97197
Sandwell Metropolitan Borough Council,http://www.sandwell.gov.uk/info/200202/performance_and_spending/1079/payments_over_500,01-Aug-2023,Childrens Services Capital,BEVAN BRITTAN LLP,Childrens Services Capital,3901.50,SH Payments,2324P05_CR00186,55036
Sandwell Metropolitan Borough Council,http://www.sandwell.gov.uk/info/200202/performance_and_spending/1079/payments_over_500,01-Aug-2023,Childrens Services Capital,EVARIS SOLUTIONS LTD,Childrens Services Capital,1240.00,"CIP - New Construction,Conversion, Enhancement & Reno",2324P05_CR00187,161598
Sandwell Metropolitan Borough Council,http://www.sandwell.gov.uk/info/200202/performance_and_spending/1079/payments_over_500,01-Aug-2023,Childrens Services Capital,INTERLOCKS SURVEYS LIMITED,Childrens Services Capital,14250.00,"CIP - New Construction,Conversion, Enhancement & Reno",2324P05_CR00188,127881
Sandwell Metropolitan Borough Council,http://www.sandwell.gov.uk/info/200202/performance_and_spending/1079/payments_over_500,07-Aug-2023,Childrens Services Capital,SEDDON CONSTRUCTION LIMITED,Childrens Services Capital,48945.06,"CIP - New Construction,Conversion, Enhancement & Reno",2324P05_CR00189,132999
Sandwell Metropolitan Borough Council,http://www.sandwell.gov.uk/info/200202/performance_and_spending/1079/payments_over_500,01-Aug-2023,Childrens Services Capital,STRATEGIC LEISURE LIMITED,Childrens Services Capital,2981.45,"CIP - New Construction,Conversion, Enhancement & Reno",2324P05_CR00190,106038
Sandwell Metropolitan Borough Council,http://www.sandwell.gov.uk/info/200202/performance_and_spending/1079/payments_over_500,01-Aug-2023,Corporate Management,LOCAL GOVERNMENT ASSOCIATION,Corporate Management,-2779.50,Hire of Facilities,2324P05_CR00191,01645246
Sandwell Metropolitan Borough Council,http://www.sandwell.gov.uk/info/200202/performance_and_spending/1079/payments_over_500,01-Aug-2023,Corporate Management,LOCAL GOVERNMENT ASSOCIATION,Corporate Management,2779.50,Hire of Facilities,2324P05_CR00192,01645246
Sandwell Metropolitan Borough Council,http://www.sandwell.gov.uk/info/200202/performance_and_spending/1079/payments_over_500,01-Aug-2023,Corporate Management,LOCAL GOVERNMENT ASSOCIATION,Corporate Management,3075.30,Conference Expenses,2324P05_CR00193,01645246
Sandwell Metropolitan Borough Council,http://www.sandwell.gov.uk/info/200202/performance_and_spending/1079/payments_over_500,17-Aug-2023,FINANCE (Inc SIU),BROWNE JACOBSON LLP,Assistant Chief Executive (Excl SIU),1177.00,Externally Purchased Professional Services ,2324P05_CR00194,109574
Sandwell Metropolitan Borough Council,http://www.sandwell.gov.uk/info/200202/performance_and_spending/1079/payments_over_500,11-Aug-2023,FINANCE (Inc SIU),BROWNE JACOBSON LLP,Assistant Chief Executive (Excl SIU),726.00,Externally Purchased Professional Services ,2324P05_CR00195,109574
Sandwell Metropolitan Borough Council,http://www.sandwell.gov.uk/info/200202/performance_and_spending/1079/payments_over_500,01-Aug-2023,FINANCE (Inc SIU),BROWNE JACOBSON LLP,Assistant Chief Executive (Excl SIU),998.40,Externally Purchased Professional Services ,2324P05_CR00196,109574
Sandwell Metropolitan Borough Council,http://www.sandwell.gov.uk/info/200202/performance_and_spending/1079/payments_over_500,02-Aug-2023,FINANCE (Inc SIU),BROWNE JACOBSON LLP,Assistant Chief Executive (Excl SIU),559.00,Externally Purchased Professional Services ,2324P05_CR00197,109574
Sandwell Metropolitan Borough Council,http://www.sandwell.gov.uk/info/200202/performance_and_spending/1079/payments_over_500,16-Aug-2023,FINANCE (Inc SIU),CHESHIRE ESTATE & LEGAL,Assistant Chief Executive (Excl SIU),5250.00,Insurance,2324P05_CR00198,139926
Sandwell Metropolitan Borough Council,http://www.sandwell.gov.uk/info/200202/performance_and_spending/1079/payments_over_500,01-Aug-2023,FINANCE (Inc SIU),DRISCOLL KINGSTON SOLICITORS,Assistant Chief Executive (Excl SIU),4417.40,Insurance,2324P05_CR00199,140883
Sandwell Metropolitan Borough Council,http://www.sandwell.gov.uk/info/200202/performance_and_spending/1079/payments_over_500,04-Aug-2023,FINANCE (Inc SIU),DWP,Assistant Chief Executive (Excl SIU),688.00,Insurance,2324P05_CR00200,01753867
Sandwell Metropolitan Borough Council,http://www.sandwell.gov.uk/info/200202/performance_and_spending/1079/payments_over_500,16-Aug-2023,FINANCE (Inc SIU),GOWING LAW SOLICITORS,Assistant Chief Executive (Excl SIU),5500.00,Insurance,2324P05_CR00201,163069
Sandwell Metropolitan Borough Council,http://www.sandwell.gov.uk/info/200202/performance_and_spending/1079/payments_over_500,21-Aug-2023,FINANCE (Inc SIU),GOWING LAW SOLICITORS,Assistant Chief Executive (Excl SIU),3500.00,Insurance,2324P05_CR00202,163069
Sandwell Metropolitan Borough Council,http://www.sandwell.gov.uk/info/200202/performance_and_spending/1079/payments_over_500,14-Aug-2023,FINANCE (Inc SIU),GOWING LAW SOLICITORS,Assistant Chief Executive (Excl SIU),3000.00,Insurance,2324P05_CR00203,163069
Sandwell Metropolitan Borough Council,http://www.sandwell.gov.uk/info/200202/performance_and_spending/1079/payments_over_500,21-Aug-2023,FINANCE (Inc SIU),GOWING LAW SOLICITORS,Assistant Chief Executive (Excl SIU),2000.00,Insurance,2324P05_CR00204,163069
Sandwell Metropolitan Borough Council,http://www.sandwell.gov.uk/info/200202/performance_and_spending/1079/payments_over_500,14-Aug-2023,FINANCE (Inc SIU),GOWING LAW SOLICITORS,Assistant Chief Executive (Excl SIU),1000.00,Insurance,2324P05_CR00205,163069
Sandwell Metropolitan Borough Council,http://www.sandwell.gov.uk/info/200202/performance_and_spending/1079/payments_over_500,08-Aug-2023,FINANCE (Inc SIU),INAAYA SOLICITORS,Assistant Chief Executive (Excl SIU),2500.00,Insurance,2324P05_CR00206,165648
Sandwell Metropolitan Borough Council,http://www.sandwell.gov.uk/info/200202/performance_and_spending/1079/payments_over_500,08-Aug-2023,FINANCE (Inc SIU),INAAYA SOLICITORS,Assistant Chief Executive (Excl SIU),1000.00,Insurance,2324P05_CR00207,165648
Sandwell Metropolitan Borough Council,http://www.sandwell.gov.uk/info/200202/performance_and_spending/1079/payments_over_500,02-Aug-2023,FINANCE (Inc SIU),IRVINGS SOLICITORS,Assistant Chief Executive (Excl SIU),2000.00,Insurance,2324P05_CR00208,110354
Sandwell Metropolitan Borough Council,http://www.sandwell.gov.uk/info/200202/performance_and_spending/1079/payments_over_500,08-Aug-2023,FINANCE (Inc SIU),IRVINGS SOLICITORS,Assistant Chief Executive (Excl SIU),9928.00,Insurance,2324P05_CR00209,110354
Sandwell Metropolitan Borough Council,http://www.sandwell.gov.uk/info/200202/performance_and_spending/1079/payments_over_500,08-Aug-2023,FINANCE (Inc SIU),KUDOS LEGAL,Assistant Chief Executive (Excl SIU),3000.00,Insurance,2324P05_CR00210,166712
Sandwell Metropolitan Borough Council,http://www.sandwell.gov.uk/info/200202/performance_and_spending/1079/payments_over_500,08-Aug-2023,FINANCE (Inc SIU),KUDOS LEGAL,Assistant Chief Executive (Excl SIU),500.00,Insurance,2324P05_CR00211,166712
Sandwell Metropolitan Borough Council,http://www.sandwell.gov.uk/info/200202/performance_and_spending/1079/payments_over_500,22-Aug-2023,FINANCE (Inc SIU),MATRIX SOLICITORS,Assistant Chief Executive (Excl SIU),1950.00,Insurance,2324P05_CR00212,150465
Sandwell Metropolitan Borough Council,http://www.sandwell.gov.uk/info/200202/performance_and_spending/1079/payments_over_500,17-Aug-2023,FINANCE (Inc SIU),MATRIX SOLICITORS,Assistant Chief Executive (Excl SIU),1678.52,Insurance,2324P05_CR00213,150465
Sandwell Metropolitan Borough Council,http://www.sandwell.gov.uk/info/200202/performance_and_spending/1079/payments_over_500,09-Aug-2023,FINANCE (Inc SIU),NEWLAW SOLICITORS,Assistant Chief Executive (Excl SIU),1000.00,Insurance,2324P05_CR00214,118813
Sandwell Metropolitan Borough Council,http://www.sandwell.gov.uk/info/200202/performance_and_spending/1079/payments_over_500,16-Aug-2023,FINANCE (Inc SIU),PABLA AND PABLA SOLICITORS ,Assistant Chief Executive (Excl SIU),5100.00,Insurance,2324P05_CR00215,133958
Sandwell Metropolitan Borough Council,http://www.sandwell.gov.uk/info/200202/performance_and_spending/1079/payments_over_500,16-Aug-2023,FINANCE (Inc SIU),PABLA AND PABLA SOLICITORS ,Assistant Chief Executive (Excl SIU),3000.00,Insurance,2324P05_CR00216,133958
Sandwell Metropolitan Borough Council,http://www.sandwell.gov.uk/info/200202/performance_and_spending/1079/payments_over_500,17-Aug-2023,FINANCE (Inc SIU),REDACTED PERSONAL DATA,Assistant Chief Executive (Excl SIU),1273.68,Insurance,2324P05_CR00217,REDACTED PERSONAL DATA
Sandwell Metropolitan Borough Council,http://www.sandwell.gov.uk/info/200202/performance_and_spending/1079/payments_over_500,17-Aug-2023,FINANCE (Inc SIU),REDACTED PERSONAL DATA,Assistant Chief Executive (Excl SIU),2500.00,Insurance,2324P05_CR00218,REDACTED PERSONAL DATA
Sandwell Metropolitan Borough Council,http://www.sandwell.gov.uk/info/200202/performance_and_spending/1079/payments_over_500,21-Aug-2023,FINANCE (Inc SIU),REDACTED PERSONAL DATA,Assistant Chief Executive (Excl SIU),2000.00,Insurance,2324P05_CR00219,REDACTED PERSONAL DATA
Sandwell Metropolitan Borough Council,http://www.sandwell.gov.uk/info/200202/performance_and_spending/1079/payments_over_500,18-Aug-2023,FINANCE (Inc SIU),REDACTED PERSONAL DATA,Assistant Chief Executive (Excl SIU),1397.05,Insurance,2324P05_CR00220,REDACTED PERSONAL DATA
Sandwell Metropolitan Borough Council,http://www.sandwell.gov.uk/info/200202/performance_and_spending/1079/payments_over_500,09-Aug-2023,FINANCE (Inc SIU),REDACTED PERSONAL DATA,Assistant Chief Executive (Excl SIU),500.00,Insurance,2324P05_CR00221,REDACTED PERSONAL DATA
Sandwell Metropolitan Borough Council,http://www.sandwell.gov.uk/info/200202/performance_and_spending/1079/payments_over_500,02-Aug-2023,FINANCE (Inc SIU),REDACTED PERSONAL DATA,Assistant Chief Executive (Excl SIU),6000.00,Insurance,2324P05_CR00222,REDACTED PERSONAL DATA
Sandwell Metropolitan Borough Council,http://www.sandwell.gov.uk/info/200202/performance_and_spending/1079/payments_over_500,01-Aug-2023,FINANCE (Inc SIU),G4S CASH SOLUTIONS (UK) LTD,Assistant Chief Executive (Excl SIU),-824.51,Cash Collections,2324P05_CR00223,01606348
Sandwell Metropolitan Borough Council,http://www.sandwell.gov.uk/info/200202/performance_and_spending/1079/payments_over_500,01-Aug-2023,FINANCE (Inc SIU),AKS VISUALS LTD,Assistant Chief Executive (Excl SIU),1750.00,Advertising & Publicity,2324P05_CR00224,164188
Sandwell Metropolitan Borough Council,http://www.sandwell.gov.uk/info/200202/performance_and_spending/1079/payments_over_500,01-Aug-2023,FINANCE (Inc SIU),ALLPAY LIMITED,Total Adult Social Care,893.69,Externally Purchased Professional Services ,2324P05_CR00225,111177
Sandwell Metropolitan Borough Council,http://www.sandwell.gov.uk/info/200202/performance_and_spending/1079/payments_over_500,17-Aug-2023,FINANCE (Inc SIU),BIRMINGHAM CITY COUNCIL,Assistant Chief Executive (Excl SIU),8165.00,Externally Purchased Professional Services ,2324P05_CR00226,01622521
Sandwell Metropolitan Borough Council,http://www.sandwell.gov.uk/info/200202/performance_and_spending/1079/payments_over_500,07-Aug-2023,FINANCE (Inc SIU),CDW LIMITED,Total Adult Social Care,679.12,ICT ,2324P05_CR00227,140946
Sandwell Metropolitan Borough Council,http://www.sandwell.gov.uk/info/200202/performance_and_spending/1079/payments_over_500,01-Aug-2023,FINANCE (Inc SIU),CIPFA C.CO,Assistant Chief Executive (Excl SIU),11700.00,Externally Purchased Professional Services ,2324P05_CR00228,134304
Sandwell Metropolitan Borough Council,http://www.sandwell.gov.uk/info/200202/performance_and_spending/1079/payments_over_500,02-Aug-2023,FINANCE (Inc SIU),CIPFA C.CO,Assistant Chief Executive (Excl SIU),20500.00,Externally Purchased Professional Services ,2324P05_CR00229,134304
Sandwell Metropolitan Borough Council,http://www.sandwell.gov.uk/info/200202/performance_and_spending/1079/payments_over_500,01-Aug-2023,FINANCE (Inc SIU),CIVICA UK LTD,Assistant Chief Executive (Excl SIU),6801.00,Externally Purchased Professional Services ,2324P05_CR00230,26200
Sandwell Metropolitan Borough Council,http://www.sandwell.gov.uk/info/200202/performance_and_spending/1079/payments_over_500,01-Aug-2023,FINANCE (Inc SIU),G4S CASH SOLUTIONS (UK) LTD,Assistant Chief Executive (Excl SIU),546.14,Cash Collections,2324P05_CR00231,01606348
Sandwell Metropolitan Borough Council,http://www.sandwell.gov.uk/info/200202/performance_and_spending/1079/payments_over_500,01-Aug-2023,FINANCE (Inc SIU),G4S CASH SOLUTIONS (UK) LTD,Assistant Chief Executive (Excl SIU),605.64,Cash Collections,2324P05_CR00232,01606348
Sandwell Metropolitan Borough Council,http://www.sandwell.gov.uk/info/200202/performance_and_spending/1079/payments_over_500,01-Aug-2023,FINANCE (Inc SIU),G4S CASH SOLUTIONS (UK) LTD,Assistant Chief Executive (Excl SIU),764.04,Cash Collections,2324P05_CR00233,01606348
Sandwell Metropolitan Borough Council,http://www.sandwell.gov.uk/info/200202/performance_and_spending/1079/payments_over_500,01-Aug-2023,FINANCE (Inc SIU),G4S CASH SOLUTIONS (UK) LTD,Assistant Chief Executive (Excl SIU),742.78,Cash Collections,2324P05_CR00234,01606348
Sandwell Metropolitan Borough Council,http://www.sandwell.gov.uk/info/200202/performance_and_spending/1079/payments_over_500,01-Aug-2023,FINANCE (Inc SIU),G4S CASH SOLUTIONS (UK) LTD,Assistant Chief Executive (Excl SIU),748.50,Cash Collections,2324P05_CR00235,01606348
Sandwell Metropolitan Borough Council,http://www.sandwell.gov.uk/info/200202/performance_and_spending/1079/payments_over_500,01-Aug-2023,FINANCE (Inc SIU),G4S CASH SOLUTIONS (UK) LTD,Assistant Chief Executive (Excl SIU),788.88,Cash Collections,2324P05_CR00236,01606348
Sandwell Metropolitan Borough Council,http://www.sandwell.gov.uk/info/200202/performance_and_spending/1079/payments_over_500,01-Aug-2023,FINANCE (Inc SIU),GREENHALGH KERR SOLICITORS LIMITED,Assistant Chief Executive (Excl SIU),1435.00,Externally Purchased Professional Services ,2324P05_CR00237,127273
Sandwell Metropolitan Borough Council,http://www.sandwell.gov.uk/info/200202/performance_and_spending/1079/payments_over_500,01-Aug-2023,FINANCE (Inc SIU),GREENHALGH KERR SOLICITORS LIMITED,Assistant Chief Executive (Excl SIU),3356.00,Externally Purchased Professional Services ,2324P05_CR00238,127273
Sandwell Metropolitan Borough Council,http://www.sandwell.gov.uk/info/200202/performance_and_spending/1079/payments_over_500,01-Aug-2023,FINANCE (Inc SIU),INFORM COMMUNICATIONS PLC,Assistant Chief Executive (Excl SIU),2400.00,Licences,2324P05_CR00239,98508
Sandwell Metropolitan Borough Council,http://www.sandwell.gov.uk/info/200202/performance_and_spending/1079/payments_over_500,01-Aug-2023,FINANCE (Inc SIU),LAVAT CONSULTING LIMITED T/A PSTAX,Assistant Chief Executive (Excl SIU),2058.00,Externally Purchased Professional Services ,2324P05_CR00240,127781
Sandwell Metropolitan Borough Council,http://www.sandwell.gov.uk/info/200202/performance_and_spending/1079/payments_over_500,01-Aug-2023,FINANCE (Inc SIU),LAVAT CONSULTING LIMITED T/A PSTAX,Assistant Chief Executive (Excl SIU),600.00,Externally Purchased Professional Services ,2324P05_CR00241,127781
Sandwell Metropolitan Borough Council,http://www.sandwell.gov.uk/info/200202/performance_and_spending/1079/payments_over_500,29-Aug-2023,FINANCE (Inc SIU),NATIONAL WESTMINSTER BANK PLC,Assistant Chief Executive (Excl SIU),600.00,Grant Payments,2324P05_CR00242,120965
Sandwell Metropolitan Borough Council,http://www.sandwell.gov.uk/info/200202/performance_and_spending/1079/payments_over_500,29-Aug-2023,FINANCE (Inc SIU),NATIONAL WESTMINSTER BANK PLC,Assistant Chief Executive (Excl SIU),2000.00,Grant Payments,2324P05_CR00243,120965
Sandwell Metropolitan Borough Council,http://www.sandwell.gov.uk/info/200202/performance_and_spending/1079/payments_over_500,29-Aug-2023,FINANCE (Inc SIU),NATIONAL WESTMINSTER BANK PLC IRO ALTERNATIVE FUEL PAYMENTS,Assistant Chief Executive (Excl SIU),45200.00,Grant Payments,2324P05_CR00244,120965
Sandwell Metropolitan Borough Council,http://www.sandwell.gov.uk/info/200202/performance_and_spending/1079/payments_over_500,29-Aug-2023,FINANCE (Inc SIU),NATIONAL WESTMINSTER BANK PLC IRO ALTERNATIVE FUEL PAYMENTS,Assistant Chief Executive (Excl SIU),16000.00,Grant Payments,2324P05_CR00245,120965
Sandwell Metropolitan Borough Council,http://www.sandwell.gov.uk/info/200202/performance_and_spending/1079/payments_over_500,01-Aug-2023,FINANCE (Inc SIU),NEC SOFTWARE SOLUTIONS UK LTD,Assistant Chief Executive (Excl SIU),604.70,Private Contractors,2324P05_CR00246,56043
Sandwell Metropolitan Borough Council,http://www.sandwell.gov.uk/info/200202/performance_and_spending/1079/payments_over_500,01-Aug-2023,FINANCE (Inc SIU),ORACLE CORPORATION UK LTD,Assistant Chief Executive (Excl SIU),26845.09,ICT ,2324P05_CR00247,01539742
Sandwell Metropolitan Borough Council,http://www.sandwell.gov.uk/info/200202/performance_and_spending/1079/payments_over_500,01-Aug-2023,FINANCE (Inc SIU),ORACLE CORPORATION UK LTD,Assistant Chief Executive (Excl SIU),4456.13,Externally Purchased Professional Services ,2324P05_CR00248,01539742
Sandwell Metropolitan Borough Council,http://www.sandwell.gov.uk/info/200202/performance_and_spending/1079/payments_over_500,01-Aug-2023,FINANCE (Inc SIU),ORACLE CORPORATION UK LTD,Assistant Chief Executive (Excl SIU),166574.05,Externally Purchased Professional Services ,2324P05_CR00249,01539742
Sandwell Metropolitan Borough Council,http://www.sandwell.gov.uk/info/200202/performance_and_spending/1079/payments_over_500,01-Aug-2023,FINANCE (Inc SIU),PAYPOINT NETWORK LIMITED,Assistant Chief Executive (Excl SIU),1000.00,Externally Purchased Professional Services ,2324P05_CR00250,112439
Sandwell Metropolitan Borough Council,http://www.sandwell.gov.uk/info/200202/performance_and_spending/1079/payments_over_500,01-Aug-2023,FINANCE (Inc SIU),PENNA PLC,Assistant Chief Executive (Excl SIU),2649.00,Advertising & Publicity,2324P05_CR00251,20829
Sandwell Metropolitan Borough Council,http://www.sandwell.gov.uk/info/200202/performance_and_spending/1079/payments_over_500,01-Aug-2023,FINANCE (Inc SIU),PHOENIX SOFTWARE LTD,Assistant Chief Executive (Excl SIU),569.18,ICT ,2324P05_CR00252,01504689
Sandwell Metropolitan Borough Council,http://www.sandwell.gov.uk/info/200202/performance_and_spending/1079/payments_over_500,01-Aug-2023,FINANCE (Inc SIU),POST OFFICE LTD,Assistant Chief Executive (Excl SIU),555.00,Postages,2324P05_CR00253,01663387
Sandwell Metropolitan Borough Council,http://www.sandwell.gov.uk/info/200202/performance_and_spending/1079/payments_over_500,17-Aug-2023,FINANCE (Inc SIU),POST OFFICE LTD,Assistant Chief Executive (Excl SIU),4273.77,Postages,2324P05_CR00254,01663387
Sandwell Metropolitan Borough Council,http://www.sandwell.gov.uk/info/200202/performance_and_spending/1079/payments_over_500,01-Aug-2023,FINANCE (Inc SIU),PROVISION  HOUSE,Assistant Chief Executive (Excl SIU),14952.00,Equipment & Furniture ,2324P05_CR00255,71090
Sandwell Metropolitan Borough Council,http://www.sandwell.gov.uk/info/200202/performance_and_spending/1079/payments_over_500,01-Aug-2023,FINANCE (Inc SIU),RENAISSANCE CREATIVE DESIGN & PRINT LTD,Assistant Chief Executive (Excl SIU),855.00,Advertising & Publicity,2324P05_CR00256,97376
Sandwell Metropolitan Borough Council,http://www.sandwell.gov.uk/info/200202/performance_and_spending/1079/payments_over_500,01-Aug-2023,FINANCE (Inc SIU),SOCITM ADVISORY LTD,Assistant Chief Executive (Excl SIU),19796.43,Consultancy,2324P05_CR00257,162370
Sandwell Metropolitan Borough Council,http://www.sandwell.gov.uk/info/200202/performance_and_spending/1079/payments_over_500,01-Aug-2023,FINANCE (Inc SIU),SOCITM ADVISORY LTD,Assistant Chief Executive (Excl SIU),9833.33,Consultancy,2324P05_CR00258,162370
Sandwell Metropolitan Borough Council,http://www.sandwell.gov.uk/info/200202/performance_and_spending/1079/payments_over_500,01-Aug-2023,FINANCE (Inc SIU),SOCITM ADVISORY LTD,Assistant Chief Executive (Excl SIU),71410.71,Consultancy,2324P05_CR00259,162370
Sandwell Metropolitan Borough Council,http://www.sandwell.gov.uk/info/200202/performance_and_spending/1079/payments_over_500,01-Aug-2023,FINANCE (Inc SIU),SOCITM ADVISORY LTD,Assistant Chief Executive (Excl SIU),8520.00,Consultancy,2324P05_CR00260,162370
Sandwell Metropolitan Borough Council,http://www.sandwell.gov.uk/info/200202/performance_and_spending/1079/payments_over_500,01-Aug-2023,FINANCE (Inc SIU),SOLACE IN BUSINESS LTD,Assistant Chief Executive (Excl SIU),5600.00,Consultancy,2324P05_CR00261,129445
Sandwell Metropolitan Borough Council,http://www.sandwell.gov.uk/info/200202/performance_and_spending/1079/payments_over_500,01-Aug-2023,FINANCE (Inc SIU),THE SOCIETY OF LOCAL AUTHORITY CHIEF EXECUTIVES AND SENIOR MANAGERS (SOLACE GROUP) LTD,Assistant Chief Executive (Excl SIU),862.50,Staff Development & Training,2324P05_CR00262,95766
Sandwell Metropolitan Borough Council,http://www.sandwell.gov.uk/info/200202/performance_and_spending/1079/payments_over_500,01-Aug-2023,FINANCE (Inc SIU),VALENCIA FINE FOODS LIMITED,Assistant Chief Executive (Excl SIU),781.40,Catering Provisions,2324P05_CR00263,131572
Sandwell Metropolitan Borough Council,http://www.sandwell.gov.uk/info/200202/performance_and_spending/1079/payments_over_500,01-Aug-2023,FINANCE (Inc SIU),XANTURA LTD,Assistant Chief Executive (Excl SIU),15000.00,Licences,2324P05_CR00264,151970
Sandwell Metropolitan Borough Council,http://www.sandwell.gov.uk/info/200202/performance_and_spending/1079/payments_over_500,11-Aug-2023,FINANCE (Inc SIU),ZURICH INSURANCE PLC,Assistant Chief Executive (Excl SIU),15000.00,Insurance,2324P05_CR00265,01749452
Sandwell Metropolitan Borough Council,http://www.sandwell.gov.uk/info/200202/performance_and_spending/1079/payments_over_500,01-Aug-2023,Housing & Assets Total,BEECHWOOD TREES & LANDSCAPE LTD,Housing & Assets Total,555.80,Externally Purchased Professional Services ,2324P05_CR00266,93287
Sandwell Metropolitan Borough Council,http://www.sandwell.gov.uk/info/200202/performance_and_spending/1079/payments_over_500,01-Aug-2023,Housing & Assets Total,BEECHWOOD TREES & LANDSCAPE LTD,Housing & Assets Total,1264.15,Externally Purchased Professional Services ,2324P05_CR00267,93287
Sandwell Metropolitan Borough Council,http://www.sandwell.gov.uk/info/200202/performance_and_spending/1079/payments_over_500,01-Aug-2023,Housing & Assets Total,BEECHWOOD TREES & LANDSCAPE LTD,Housing & Assets Total,781.42,Externally Purchased Professional Services ,2324P05_CR00268,93287
Sandwell Metropolitan Borough Council,http://www.sandwell.gov.uk/info/200202/performance_and_spending/1079/payments_over_500,01-Aug-2023,Housing & Assets Total,BEECHWOOD TREES & LANDSCAPE LTD,Housing & Assets Total,621.18,Externally Purchased Professional Services ,2324P05_CR00269,93287
Sandwell Metropolitan Borough Council,http://www.sandwell.gov.uk/info/200202/performance_and_spending/1079/payments_over_500,02-Aug-2023,Housing & Assets Total,BEECHWOOD TREES & LANDSCAPE LTD,Housing & Assets Total,959.00,Externally Purchased Professional Services ,2324P05_CR00270,93287
Sandwell Metropolitan Borough Council,http://www.sandwell.gov.uk/info/200202/performance_and_spending/1079/payments_over_500,04-Aug-2023,Housing & Assets Total,BEECHWOOD TREES & LANDSCAPE LTD,Housing & Assets Total,4279.60,Externally Purchased Professional Services ,2324P05_CR00271,93287
Sandwell Metropolitan Borough Council,http://www.sandwell.gov.uk/info/200202/performance_and_spending/1079/payments_over_500,10-Aug-2023,Housing & Assets Total,BEECHWOOD TREES & LANDSCAPE LTD,Housing & Assets Total,1822.19,Externally Purchased Professional Services ,2324P05_CR00272,93287
Sandwell Metropolitan Borough Council,http://www.sandwell.gov.uk/info/200202/performance_and_spending/1079/payments_over_500,14-Aug-2023,Housing & Assets Total,BEECHWOOD TREES & LANDSCAPE LTD,Housing & Assets Total,562.37,Externally Purchased Professional Services ,2324P05_CR00273,93287
Sandwell Metropolitan Borough Council,http://www.sandwell.gov.uk/info/200202/performance_and_spending/1079/payments_over_500,14-Aug-2023,Housing & Assets Total,BLACK COUNTRY TOURING,Housing & Assets Total,4365.50,Civic Events,2324P05_CR00274,01661722
Sandwell Metropolitan Borough Council,http://www.sandwell.gov.uk/info/200202/performance_and_spending/1079/payments_over_500,14-Aug-2023,Housing & Assets Total,BLACK COUNTRY TOURING,Housing & Assets Total,4165.00,Civic Events,2324P05_CR00275,01661722
Sandwell Metropolitan Borough Council,http://www.sandwell.gov.uk/info/200202/performance_and_spending/1079/payments_over_500,07-Aug-2023,Housing & Assets Total,BRUSHSTROKES,Corporate Management,5500.00,Grant Payments,2324P05_CR00276,21029374
Sandwell Metropolitan Borough Council,http://www.sandwell.gov.uk/info/200202/performance_and_spending/1079/payments_over_500,01-Aug-2023,Housing & Assets Total,BRUSHSTROKES,Corporate Management,1815.08,Grant Payments,2324P05_CR00277,21029374
Sandwell Metropolitan Borough Council,http://www.sandwell.gov.uk/info/200202/performance_and_spending/1079/payments_over_500,01-Aug-2023,Housing & Assets Total,BRUSHSTROKES,Corporate Management,2785.00,Grant Payments,2324P05_CR00278,21029374
Sandwell Metropolitan Borough Council,http://www.sandwell.gov.uk/info/200202/performance_and_spending/1079/payments_over_500,01-Aug-2023,Housing & Assets Total,BRUSHSTROKES,Corporate Management,750.00,Grant Payments,2324P05_CR00279,21029374
Sandwell Metropolitan Borough Council,http://www.sandwell.gov.uk/info/200202/performance_and_spending/1079/payments_over_500,01-Aug-2023,Housing & Assets Total,BRUSHSTROKES,Corporate Management,1299.49,Grant Payments,2324P05_CR00280,21029374
Sandwell Metropolitan Borough Council,http://www.sandwell.gov.uk/info/200202/performance_and_spending/1079/payments_over_500,01-Aug-2023,Housing & Assets Total,BRUSHSTROKES,Corporate Management,3613.83,Grant Payments,2324P05_CR00281,21029374
Sandwell Metropolitan Borough Council,http://www.sandwell.gov.uk/info/200202/performance_and_spending/1079/payments_over_500,23-Aug-2023,Housing & Assets Total,CERTAS ENERGY LIMITED,Corporate Management,1856.18,Fuel ,2324P05_CR00282,80421
Sandwell Metropolitan Borough Council,http://www.sandwell.gov.uk/info/200202/performance_and_spending/1079/payments_over_500,17-Aug-2023,Housing & Assets Total,CHUBB FIRE & SECURITY LIMITED t/a CHUBB ELECTRONIC SECURITY,Corporate Management,1979.20,Security,2324P05_CR00283,81343
Sandwell Metropolitan Borough Council,http://www.sandwell.gov.uk/info/200202/performance_and_spending/1079/payments_over_500,01-Aug-2023,Housing & Assets Total,CKP LTD T/A HAGLEY HOTEL,Corporate Management,2550.00,Rents,2324P05_CR00284,143677
Sandwell Metropolitan Borough Council,http://www.sandwell.gov.uk/info/200202/performance_and_spending/1079/payments_over_500,16-Aug-2023,Housing & Assets Total,CKP LTD T/A HAGLEY HOTEL,Corporate Management,2565.00,Rents,2324P05_CR00285,143677
Sandwell Metropolitan Borough Council,http://www.sandwell.gov.uk/info/200202/performance_and_spending/1079/payments_over_500,16-Aug-2023,Housing & Assets Total,CKP LTD T/A HAGLEY HOTEL,Corporate Management,2850.00,Rents,2324P05_CR00286,143677
Sandwell Metropolitan Borough Council,http://www.sandwell.gov.uk/info/200202/performance_and_spending/1079/payments_over_500,16-Aug-2023,Housing & Assets Total,CONTRACT LETTINGS LTD,Corporate Management,701.22,Rents,2324P05_CR00287,76625
Sandwell Metropolitan Borough Council,http://www.sandwell.gov.uk/info/200202/performance_and_spending/1079/payments_over_500,16-Aug-2023,Housing & Assets Total,CONTRACT LETTINGS LTD,Corporate Management,701.22,Rents,2324P05_CR00288,76625
Sandwell Metropolitan Borough Council,http://www.sandwell.gov.uk/info/200202/performance_and_spending/1079/payments_over_500,16-Aug-2023,Housing & Assets Total,CONTRACT LETTINGS LTD,Corporate Management,763.22,Rents,2324P05_CR00289,76625
Sandwell Metropolitan Borough Council,http://www.sandwell.gov.uk/info/200202/performance_and_spending/1079/payments_over_500,16-Aug-2023,Housing & Assets Total,CONTRACT LETTINGS LTD,Corporate Management,559.86,Rents,2324P05_CR00290,76625
Sandwell Metropolitan Borough Council,http://www.sandwell.gov.uk/info/200202/performance_and_spending/1079/payments_over_500,16-Aug-2023,Housing & Assets Total,CONTRACT LETTINGS LTD,Corporate Management,559.86,Rents,2324P05_CR00291,76625
Sandwell Metropolitan Borough Council,http://www.sandwell.gov.uk/info/200202/performance_and_spending/1079/payments_over_500,17-Aug-2023,Housing & Assets Total,CONTRACT LETTINGS LTD,Corporate Management,763.22,Rents,2324P05_CR00292,76625
Sandwell Metropolitan Borough Council,http://www.sandwell.gov.uk/info/200202/performance_and_spending/1079/payments_over_500,01-Aug-2023,Housing & Assets Total,COOKE RUDLING LIMITED,Assistant Chief Executive (Excl SIU),1200.00,Externally Purchased Professional Services ,2324P05_CR00293,01577073
Sandwell Metropolitan Borough Council,http://www.sandwell.gov.uk/info/200202/performance_and_spending/1079/payments_over_500,01-Aug-2023,Housing & Assets Total,EDWARDS LOCKSMITHS & SECURITY LIMITED,Corporate Management,565.50,Security,2324P05_CR00294,65304
Sandwell Metropolitan Borough Council,http://www.sandwell.gov.uk/info/200202/performance_and_spending/1079/payments_over_500,07-Aug-2023,Housing & Assets Total,EUROPEAN'S WELFARE ASSOCIATION CIC,Housing & Assets Total,622.38,Grant Payments,2324P05_CR00295,123703
Sandwell Metropolitan Borough Council,http://www.sandwell.gov.uk/info/200202/performance_and_spending/1079/payments_over_500,07-Aug-2023,Housing & Assets Total,EUROPEAN'S WELFARE ASSOCIATION CIC,Housing & Assets Total,21000.00,Grant Payments,2324P05_CR00296,123703
Sandwell Metropolitan Borough Council,http://www.sandwell.gov.uk/info/200202/performance_and_spending/1079/payments_over_500,01-Aug-2023,Housing & Assets Total,EUROPEAN'S WELFARE ASSOCIATION CIC,Housing & Assets Total,4000.00,Grant Payments,2324P05_CR00297,123703
Sandwell Metropolitan Borough Council,http://www.sandwell.gov.uk/info/200202/performance_and_spending/1079/payments_over_500,11-Aug-2023,Housing & Assets Total,GILANI ENTERPRISES LIMITED,Corporate Management,1933.33,Rents,2324P05_CR00298,2696
Sandwell Metropolitan Borough Council,http://www.sandwell.gov.uk/info/200202/performance_and_spending/1079/payments_over_500,11-Aug-2023,Housing & Assets Total,GILANI ENTERPRISES LIMITED,Corporate Management,2333.33,Rents,2324P05_CR00299,2696
Sandwell Metropolitan Borough Council,http://www.sandwell.gov.uk/info/200202/performance_and_spending/1079/payments_over_500,01-Aug-2023,Housing & Assets Total,GILANI ENTERPRISES LIMITED,Corporate Management,3100.00,Rents,2324P05_CR00300,2696
Sandwell Metropolitan Borough Council,http://www.sandwell.gov.uk/info/200202/performance_and_spending/1079/payments_over_500,01-Aug-2023,Housing & Assets Total,GILANI ENTERPRISES LIMITED,Corporate Management,533.33,Rents,2324P05_CR00301,2696
Sandwell Metropolitan Borough Council,http://www.sandwell.gov.uk/info/200202/performance_and_spending/1079/payments_over_500,01-Aug-2023,Housing & Assets Total,GILANI ENTERPRISES LIMITED,Corporate Management,933.33,Rents,2324P05_CR00302,2696
Sandwell Metropolitan Borough Council,http://www.sandwell.gov.uk/info/200202/performance_and_spending/1079/payments_over_500,01-Aug-2023,Housing & Assets Total,GILANI ENTERPRISES LIMITED,Corporate Management,1916.67,Rents,2324P05_CR00303,2696
Sandwell Metropolitan Borough Council,http://www.sandwell.gov.uk/info/200202/performance_and_spending/1079/payments_over_500,01-Aug-2023,Housing & Assets Total,GILANI ENTERPRISES LIMITED,Corporate Management,2333.33,Rents,2324P05_CR00304,2696
Sandwell Metropolitan Borough Council,http://www.sandwell.gov.uk/info/200202/performance_and_spending/1079/payments_over_500,01-Aug-2023,Housing & Assets Total,GILANI ENTERPRISES LIMITED,Corporate Management,1866.67,Rents,2324P05_CR00305,2696
Sandwell Metropolitan Borough Council,http://www.sandwell.gov.uk/info/200202/performance_and_spending/1079/payments_over_500,01-Aug-2023,Housing & Assets Total,GILANI ENTERPRISES LIMITED,Corporate Management,2600.00,Rents,2324P05_CR00306,2696
Sandwell Metropolitan Borough Council,http://www.sandwell.gov.uk/info/200202/performance_and_spending/1079/payments_over_500,01-Aug-2023,Housing & Assets Total,GILANI ENTERPRISES LIMITED,Corporate Management,1000.00,Rents,2324P05_CR00307,2696
Sandwell Metropolitan Borough Council,http://www.sandwell.gov.uk/info/200202/performance_and_spending/1079/payments_over_500,01-Aug-2023,Housing & Assets Total,GILANI ENTERPRISES LIMITED,Corporate Management,4666.67,Rents,2324P05_CR00308,2696
Sandwell Metropolitan Borough Council,http://www.sandwell.gov.uk/info/200202/performance_and_spending/1079/payments_over_500,01-Aug-2023,Housing & Assets Total,GILANI ENTERPRISES LIMITED,Corporate Management,3733.33,Rents,2324P05_CR00309,2696
Sandwell Metropolitan Borough Council,http://www.sandwell.gov.uk/info/200202/performance_and_spending/1079/payments_over_500,01-Aug-2023,Housing & Assets Total,GILANI ENTERPRISES LIMITED,Corporate Management,733.33,Rents,2324P05_CR00310,2696
Sandwell Metropolitan Borough Council,http://www.sandwell.gov.uk/info/200202/performance_and_spending/1079/payments_over_500,01-Aug-2023,Housing & Assets Total,GILANI ENTERPRISES LIMITED,Corporate Management,1266.67,Rents,2324P05_CR00311,2696
Sandwell Metropolitan Borough Council,http://www.sandwell.gov.uk/info/200202/performance_and_spending/1079/payments_over_500,01-Aug-2023,Housing & Assets Total,GILANI ENTERPRISES LIMITED,Corporate Management,866.67,Rents,2324P05_CR00312,2696
Sandwell Metropolitan Borough Council,http://www.sandwell.gov.uk/info/200202/performance_and_spending/1079/payments_over_500,01-Aug-2023,Housing & Assets Total,GILANI ENTERPRISES LIMITED,Corporate Management,11841.67,Rents,2324P05_CR00313,2696
Sandwell Metropolitan Borough Council,http://www.sandwell.gov.uk/info/200202/performance_and_spending/1079/payments_over_500,01-Aug-2023,Housing & Assets Total,HAMSTEAD VILLAGE TENANTS & RESIDENTS ASSOCIATION,Corporate Management,674.81,Tenants Expenses,2324P05_CR00314,140897
Sandwell Metropolitan Borough Council,http://www.sandwell.gov.uk/info/200202/performance_and_spending/1079/payments_over_500,16-Aug-2023,Housing & Assets Total,"HIGHFIELD HOUSE HOTEL,",Corporate Management,3255.00,Rents,2324P05_CR00315,162756
Sandwell Metropolitan Borough Council,http://www.sandwell.gov.uk/info/200202/performance_and_spending/1079/payments_over_500,16-Aug-2023,Housing & Assets Total,"HIGHFIELD HOUSE HOTEL,",Corporate Management,855.00,Rents,2324P05_CR00316,162756
Sandwell Metropolitan Borough Council,http://www.sandwell.gov.uk/info/200202/performance_and_spending/1079/payments_over_500,16-Aug-2023,Housing & Assets Total,"HIGHFIELD HOUSE HOTEL,",Corporate Management,900.00,Rents,2324P05_CR00317,162756
Sandwell Metropolitan Borough Council,http://www.sandwell.gov.uk/info/200202/performance_and_spending/1079/payments_over_500,16-Aug-2023,Housing & Assets Total,"HIGHFIELD HOUSE HOTEL,",Corporate Management,2220.00,Rents,2324P05_CR00318,162756
Sandwell Metropolitan Borough Council,http://www.sandwell.gov.uk/info/200202/performance_and_spending/1079/payments_over_500,16-Aug-2023,Housing & Assets Total,"HIGHFIELD HOUSE HOTEL,",Corporate Management,1395.00,Rents,2324P05_CR00319,162756
Sandwell Metropolitan Borough Council,http://www.sandwell.gov.uk/info/200202/performance_and_spending/1079/payments_over_500,16-Aug-2023,Housing & Assets Total,"HIGHFIELD HOUSE HOTEL,",Corporate Management,840.00,Rents,2324P05_CR00320,162756
Sandwell Metropolitan Borough Council,http://www.sandwell.gov.uk/info/200202/performance_and_spending/1079/payments_over_500,16-Aug-2023,Housing & Assets Total,"HIGHFIELD HOUSE HOTEL,",Corporate Management,2325.00,Rents,2324P05_CR00321,162756
Sandwell Metropolitan Borough Council,http://www.sandwell.gov.uk/info/200202/performance_and_spending/1079/payments_over_500,16-Aug-2023,Housing & Assets Total,"HIGHFIELD HOUSE HOTEL,",Corporate Management,600.00,Rents,2324P05_CR00322,162756
Sandwell Metropolitan Borough Council,http://www.sandwell.gov.uk/info/200202/performance_and_spending/1079/payments_over_500,16-Aug-2023,Housing & Assets Total,"HIGHFIELD HOUSE HOTEL,",Corporate Management,1100.00,Rents,2324P05_CR00323,162756
Sandwell Metropolitan Borough Council,http://www.sandwell.gov.uk/info/200202/performance_and_spending/1079/payments_over_500,16-Aug-2023,Housing & Assets Total,"HIGHFIELD HOUSE HOTEL,",Corporate Management,2100.00,Rents,2324P05_CR00324,162756
Sandwell Metropolitan Borough Council,http://www.sandwell.gov.uk/info/200202/performance_and_spending/1079/payments_over_500,16-Aug-2023,Housing & Assets Total,"HIGHFIELD HOUSE HOTEL,",Corporate Management,1860.00,Rents,2324P05_CR00325,162756
Sandwell Metropolitan Borough Council,http://www.sandwell.gov.uk/info/200202/performance_and_spending/1079/payments_over_500,16-Aug-2023,Housing & Assets Total,"HIGHFIELD HOUSE HOTEL,",Corporate Management,990.00,Rents,2324P05_CR00326,162756
Sandwell Metropolitan Borough Council,http://www.sandwell.gov.uk/info/200202/performance_and_spending/1079/payments_over_500,01-Aug-2023,Housing & Assets Total,HOME FARM NURSERIES (PINVIN) LIMITED,Housing & Assets Total,2250.63,Equipment & Furniture ,2324P05_CR00327,77003445
Sandwell Metropolitan Borough Council,http://www.sandwell.gov.uk/info/200202/performance_and_spending/1079/payments_over_500,01-Aug-2023,Housing & Assets Total,IMMEDIATE CARE MEDICAL SERVICES LIMITED,Housing & Assets Total,650.00,Civic Events,2324P05_CR00328,127453
Sandwell Metropolitan Borough Council,http://www.sandwell.gov.uk/info/200202/performance_and_spending/1079/payments_over_500,01-Aug-2023,Housing & Assets Total,MIDLAND FORESTRY LIMITED,Housing & Assets Total,1530.00,Externally Purchased Professional Services ,2324P05_CR00329,45812
Sandwell Metropolitan Borough Council,http://www.sandwell.gov.uk/info/200202/performance_and_spending/1079/payments_over_500,01-Aug-2023,Housing & Assets Total,MIDLAND FORESTRY LIMITED,Housing & Assets Total,5534.00,Externally Purchased Professional Services ,2324P05_CR00330,45812
Sandwell Metropolitan Borough Council,http://www.sandwell.gov.uk/info/200202/performance_and_spending/1079/payments_over_500,01-Aug-2023,Housing & Assets Total,MIDLAND FORESTRY LIMITED,Housing & Assets Total,743.24,Externally Purchased Professional Services ,2324P05_CR00331,45812
Sandwell Metropolitan Borough Council,http://www.sandwell.gov.uk/info/200202/performance_and_spending/1079/payments_over_500,01-Aug-2023,Housing & Assets Total,MIDLAND FORESTRY LIMITED,Housing & Assets Total,941.57,Externally Purchased Professional Services ,2324P05_CR00332,45812
Sandwell Metropolitan Borough Council,http://www.sandwell.gov.uk/info/200202/performance_and_spending/1079/payments_over_500,01-Aug-2023,Housing & Assets Total,MIDLAND FORESTRY LIMITED,Housing & Assets Total,551.44,Externally Purchased Professional Services ,2324P05_CR00333,45812
Sandwell Metropolitan Borough Council,http://www.sandwell.gov.uk/info/200202/performance_and_spending/1079/payments_over_500,01-Aug-2023,Housing & Assets Total,MIDLAND FORESTRY LIMITED,Housing & Assets Total,1192.24,Externally Purchased Professional Services ,2324P05_CR00334,45812
Sandwell Metropolitan Borough Council,http://www.sandwell.gov.uk/info/200202/performance_and_spending/1079/payments_over_500,01-Aug-2023,Housing & Assets Total,MIDLAND FORESTRY LIMITED,Housing & Assets Total,523.10,Externally Purchased Professional Services ,2324P05_CR00335,45812
Sandwell Metropolitan Borough Council,http://www.sandwell.gov.uk/info/200202/performance_and_spending/1079/payments_over_500,01-Aug-2023,Housing & Assets Total,MIDLAND FORESTRY LIMITED,Housing & Assets Total,820.61,Externally Purchased Professional Services ,2324P05_CR00336,45812
Sandwell Metropolitan Borough Council,http://www.sandwell.gov.uk/info/200202/performance_and_spending/1079/payments_over_500,01-Aug-2023,Housing & Assets Total,MIDLAND FORESTRY LIMITED,Housing & Assets Total,652.79,Externally Purchased Professional Services ,2324P05_CR00337,45812
Sandwell Metropolitan Borough Council,http://www.sandwell.gov.uk/info/200202/performance_and_spending/1079/payments_over_500,01-Aug-2023,Housing & Assets Total,MIDLAND FORESTRY LIMITED,Housing & Assets Total,1961.60,Externally Purchased Professional Services ,2324P05_CR00338,45812
Sandwell Metropolitan Borough Council,http://www.sandwell.gov.uk/info/200202/performance_and_spending/1079/payments_over_500,02-Aug-2023,Housing & Assets Total,MIDLAND FORESTRY LIMITED,Housing & Assets Total,784.64,Externally Purchased Professional Services ,2324P05_CR00339,45812
Sandwell Metropolitan Borough Council,http://www.sandwell.gov.uk/info/200202/performance_and_spending/1079/payments_over_500,03-Aug-2023,Housing & Assets Total,MIDLAND FORESTRY LIMITED,Housing & Assets Total,11326.00,Externally Purchased Professional Services ,2324P05_CR00340,45812
Sandwell Metropolitan Borough Council,http://www.sandwell.gov.uk/info/200202/performance_and_spending/1079/payments_over_500,03-Aug-2023,Housing & Assets Total,MIDLAND FORESTRY LIMITED,Housing & Assets Total,808.62,Externally Purchased Professional Services ,2324P05_CR00341,45812
Sandwell Metropolitan Borough Council,http://www.sandwell.gov.uk/info/200202/performance_and_spending/1079/payments_over_500,01-Aug-2023,Housing & Assets Total,MIDLAND FORESTRY LIMITED,Housing & Assets Total,1142.08,Externally Purchased Professional Services ,2324P05_CR00342,45812
Sandwell Metropolitan Borough Council,http://www.sandwell.gov.uk/info/200202/performance_and_spending/1079/payments_over_500,01-Aug-2023,Housing & Assets Total,MIDLAND FORESTRY LIMITED,Housing & Assets Total,605.94,Externally Purchased Professional Services ,2324P05_CR00343,45812
Sandwell Metropolitan Borough Council,http://www.sandwell.gov.uk/info/200202/performance_and_spending/1079/payments_over_500,01-Aug-2023,Housing & Assets Total,MIDLAND FORESTRY LIMITED,Housing & Assets Total,1534.40,Externally Purchased Professional Services ,2324P05_CR00344,45812
Sandwell Metropolitan Borough Council,http://www.sandwell.gov.uk/info/200202/performance_and_spending/1079/payments_over_500,01-Aug-2023,Housing & Assets Total,MIDLAND FORESTRY LIMITED,Housing & Assets Total,1050.56,Externally Purchased Professional Services ,2324P05_CR00345,45812
Sandwell Metropolitan Borough Council,http://www.sandwell.gov.uk/info/200202/performance_and_spending/1079/payments_over_500,01-Aug-2023,Housing & Assets Total,MY PARTY PACKAGE LTD,Housing & Assets Total,1849.00,Civic Events,2324P05_CR00346,166235
Sandwell Metropolitan Borough Council,http://www.sandwell.gov.uk/info/200202/performance_and_spending/1079/payments_over_500,01-Aug-2023,Housing & Assets Total,MY PARTY PACKAGE LTD,Housing & Assets Total,550.00,Civic Events,2324P05_CR00347,166235
Sandwell Metropolitan Borough Council,http://www.sandwell.gov.uk/info/200202/performance_and_spending/1079/payments_over_500,01-Aug-2023,Housing & Assets Total,MY PARTY PACKAGE LTD,Housing & Assets Total,550.00,Civic Events,2324P05_CR00348,166235
Sandwell Metropolitan Borough Council,http://www.sandwell.gov.uk/info/200202/performance_and_spending/1079/payments_over_500,01-Aug-2023,Housing & Assets Total,MY PARTY PACKAGE LTD,Housing & Assets Total,1849.00,Civic Events,2324P05_CR00349,166235
Sandwell Metropolitan Borough Council,http://www.sandwell.gov.uk/info/200202/performance_and_spending/1079/payments_over_500,01-Aug-2023,Housing & Assets Total,MY PARTY PACKAGE LTD,Housing & Assets Total,550.00,Civic Events,2324P05_CR00350,166235
Sandwell Metropolitan Borough Council,http://www.sandwell.gov.uk/info/200202/performance_and_spending/1079/payments_over_500,01-Aug-2023,Housing & Assets Total,MY PARTY PACKAGE LTD,Housing & Assets Total,1849.00,Civic Events,2324P05_CR00351,166235
Sandwell Metropolitan Borough Council,http://www.sandwell.gov.uk/info/200202/performance_and_spending/1079/payments_over_500,01-Aug-2023,Housing & Assets Total,MY PARTY PACKAGE LTD,Housing & Assets Total,1849.00,Civic Events,2324P05_CR00352,166235
Sandwell Metropolitan Borough Council,http://www.sandwell.gov.uk/info/200202/performance_and_spending/1079/payments_over_500,01-Aug-2023,Housing & Assets Total,MY PARTY PACKAGE LTD,Housing & Assets Total,550.00,Civic Events,2324P05_CR00353,166235
Sandwell Metropolitan Borough Council,http://www.sandwell.gov.uk/info/200202/performance_and_spending/1079/payments_over_500,11-Aug-2023,Housing & Assets Total,MY PARTY PACKAGE LTD,Housing & Assets Total,580.00,Civic Events,2324P05_CR00354,166235
Sandwell Metropolitan Borough Council,http://www.sandwell.gov.uk/info/200202/performance_and_spending/1079/payments_over_500,01-Aug-2023,Housing & Assets Total,PEOPLE POTENTIAL POSSIBILITIES,Corporate Management,2610.00,Rents,2324P05_CR00355,76739
Sandwell Metropolitan Borough Council,http://www.sandwell.gov.uk/info/200202/performance_and_spending/1079/payments_over_500,01-Aug-2023,Housing & Assets Total,PEOPLE POTENTIAL POSSIBILITIES,Corporate Management,3915.00,Rents,2324P05_CR00356,76739
Sandwell Metropolitan Borough Council,http://www.sandwell.gov.uk/info/200202/performance_and_spending/1079/payments_over_500,01-Aug-2023,Housing & Assets Total,PEOPLE POTENTIAL POSSIBILITIES,Corporate Management,3330.00,Rents,2324P05_CR00357,76739
Sandwell Metropolitan Borough Council,http://www.sandwell.gov.uk/info/200202/performance_and_spending/1079/payments_over_500,01-Aug-2023,Housing & Assets Total,PEOPLE POTENTIAL POSSIBILITIES,Corporate Management,3780.00,Rents,2324P05_CR00358,76739
Sandwell Metropolitan Borough Council,http://www.sandwell.gov.uk/info/200202/performance_and_spending/1079/payments_over_500,08-Aug-2023,Housing & Assets Total,PEOPLE POTENTIAL POSSIBILITIES,Corporate Management,4800.00,Rents,2324P05_CR00359,76739
Sandwell Metropolitan Borough Council,http://www.sandwell.gov.uk/info/200202/performance_and_spending/1079/payments_over_500,14-Aug-2023,Housing & Assets Total,PEOPLE POTENTIAL POSSIBILITIES,Corporate Management,7020.00,Rents,2324P05_CR00360,76739
Sandwell Metropolitan Borough Council,http://www.sandwell.gov.uk/info/200202/performance_and_spending/1079/payments_over_500,14-Aug-2023,Housing & Assets Total,PEOPLE POTENTIAL POSSIBILITIES,Corporate Management,4095.00,Rents,2324P05_CR00361,76739
Sandwell Metropolitan Borough Council,http://www.sandwell.gov.uk/info/200202/performance_and_spending/1079/payments_over_500,14-Aug-2023,Housing & Assets Total,PEOPLE POTENTIAL POSSIBILITIES,Corporate Management,2880.00,Rents,2324P05_CR00362,76739
Sandwell Metropolitan Borough Council,http://www.sandwell.gov.uk/info/200202/performance_and_spending/1079/payments_over_500,14-Aug-2023,Housing & Assets Total,PEOPLE POTENTIAL POSSIBILITIES,Corporate Management,4725.00,Rents,2324P05_CR00363,76739
Sandwell Metropolitan Borough Council,http://www.sandwell.gov.uk/info/200202/performance_and_spending/1079/payments_over_500,14-Aug-2023,Housing & Assets Total,PEOPLE POTENTIAL POSSIBILITIES,Corporate Management,3150.00,Rents,2324P05_CR00364,76739
Sandwell Metropolitan Borough Council,http://www.sandwell.gov.uk/info/200202/performance_and_spending/1079/payments_over_500,14-Aug-2023,Housing & Assets Total,PEOPLE POTENTIAL POSSIBILITIES,Corporate Management,4725.00,Rents,2324P05_CR00365,76739
Sandwell Metropolitan Borough Council,http://www.sandwell.gov.uk/info/200202/performance_and_spending/1079/payments_over_500,01-Aug-2023,Housing & Assets Total,PPL PRS LTD,Corporate Management,4241.95,Licences,2324P05_CR00366,134302
Sandwell Metropolitan Borough Council,http://www.sandwell.gov.uk/info/200202/performance_and_spending/1079/payments_over_500,08-Aug-2023,Housing & Assets Total,PROFILE SECURITY SERVICES LTD,Corporate Management,10721.04,Security,2324P05_CR00367,131253
Sandwell Metropolitan Borough Council,http://www.sandwell.gov.uk/info/200202/performance_and_spending/1079/payments_over_500,08-Aug-2023,Housing & Assets Total,PROFILE SECURITY SERVICES LTD,Corporate Management,10721.04,Security,2324P05_CR00368,131253
Sandwell Metropolitan Borough Council,http://www.sandwell.gov.uk/info/200202/performance_and_spending/1079/payments_over_500,01-Aug-2023,Housing & Assets Total,RIGHT TO CARE LTD.,Corporate Management,1178.57,Rents,2324P05_CR00369,133426
Sandwell Metropolitan Borough Council,http://www.sandwell.gov.uk/info/200202/performance_and_spending/1079/payments_over_500,08-Aug-2023,Housing & Assets Total,RIGHT TO CARE LTD.,Corporate Management,746.43,Rents,2324P05_CR00370,133426
Sandwell Metropolitan Borough Council,http://www.sandwell.gov.uk/info/200202/performance_and_spending/1079/payments_over_500,14-Aug-2023,Housing & Assets Total,RIGHT TO CARE LTD.,Corporate Management,1217.86,Rents,2324P05_CR00371,133426
Sandwell Metropolitan Borough Council,http://www.sandwell.gov.uk/info/200202/performance_and_spending/1079/payments_over_500,14-Aug-2023,Housing & Assets Total,RIGHT TO CARE LTD.,Corporate Management,1217.86,Rents,2324P05_CR00372,133426
Sandwell Metropolitan Borough Council,http://www.sandwell.gov.uk/info/200202/performance_and_spending/1079/payments_over_500,14-Aug-2023,Housing & Assets Total,RIGHT TO CARE LTD.,Corporate Management,1217.86,Rents,2324P05_CR00373,133426
Sandwell Metropolitan Borough Council,http://www.sandwell.gov.uk/info/200202/performance_and_spending/1079/payments_over_500,14-Aug-2023,Housing & Assets Total,RIGHT TO CARE LTD.,Corporate Management,1178.57,Rents,2324P05_CR00374,133426
Sandwell Metropolitan Borough Council,http://www.sandwell.gov.uk/info/200202/performance_and_spending/1079/payments_over_500,16-Aug-2023,Housing & Assets Total,SAFFRON HOTEL,Corporate Management,91320.00,Rents,2324P05_CR00375,164316
Sandwell Metropolitan Borough Council,http://www.sandwell.gov.uk/info/200202/performance_and_spending/1079/payments_over_500,01-Aug-2023,Housing & Assets Total,TOTALENERGIES GAS & POWER LTD,Corporate Management,794.84,Electricity,2324P05_CR00376,107605
Sandwell Metropolitan Borough Council,http://www.sandwell.gov.uk/info/200202/performance_and_spending/1079/payments_over_500,08-Aug-2023,Housing & Assets Total,WARD SECURITY & ELECTRICAL,Corporate Management,624.00,Materials & Consumables,2324P05_CR00377,01692494
Sandwell Metropolitan Borough Council,http://www.sandwell.gov.uk/info/200202/performance_and_spending/1079/payments_over_500,31-Aug-2023,Housing & Assets Total,WK PROPERTY LTD T-A WK PROPERTY,Corporate Management,1778.85,Tenants Expenses,2324P05_CR00378,145232
Sandwell Metropolitan Borough Council,http://www.sandwell.gov.uk/info/200202/performance_and_spending/1079/payments_over_500,11-Aug-2023,Housing & Assets Total,YOUR MOVE,Corporate Management,1725.00,Tenants Expenses,2324P05_CR00379,166769
Sandwell Metropolitan Borough Council,http://www.sandwell.gov.uk/info/200202/performance_and_spending/1079/payments_over_500,01-Aug-2023,Housing & Assets Total,BELL TENT SUSSEX,Housing & Assets Total,665.83,Civic Events,2324P05_CR00380,166254
Sandwell Metropolitan Borough Council,http://www.sandwell.gov.uk/info/200202/performance_and_spending/1079/payments_over_500,03-Aug-2023,Housing & Assets Total,REDACTED PERSONAL DATA T/A MANGO MOSAICS,Housing & Assets Total,6412.24,Civic Events,2324P05_CR00381,REDACTED PERSONAL DATA
Sandwell Metropolitan Borough Council,http://www.sandwell.gov.uk/info/200202/performance_and_spending/1079/payments_over_500,17-Aug-2023,Housing & Assets Total,REDACTED PERSONAL DATA,Corporate Management,1920.00,Building Maintenance & Improvements,2324P05_CR00382,REDACTED PERSONAL DATA
Sandwell Metropolitan Borough Council,http://www.sandwell.gov.uk/info/200202/performance_and_spending/1079/payments_over_500,10-Aug-2023,Housing & Assets Total,REDACTED PERSONAL DATA,Corporate Management,800.00,Tenants Expenses,2324P05_CR00383,REDACTED PERSONAL DATA
Sandwell Metropolitan Borough Council,http://www.sandwell.gov.uk/info/200202/performance_and_spending/1079/payments_over_500,04-Aug-2023,Housing & Assets Total,REDACTED PERSONAL DATA,Corporate Management,650.00,Rents,2324P05_CR00384,REDACTED PERSONAL DATA
Sandwell Metropolitan Borough Council,http://www.sandwell.gov.uk/info/200202/performance_and_spending/1079/payments_over_500,21-Aug-2023,Housing & Assets Total,REDACTED PERSONAL DATA,Corporate Management,1450.00,Rents,2324P05_CR00385,REDACTED PERSONAL DATA
Sandwell Metropolitan Borough Council,http://www.sandwell.gov.uk/info/200202/performance_and_spending/1079/payments_over_500,01-Aug-2023,Housing & Assets Total,REDACTED PERSONAL DATA,Corporate Management,1200.00,Rents,2324P05_CR00386,REDACTED PERSONAL DATA
Sandwell Metropolitan Borough Council,http://www.sandwell.gov.uk/info/200202/performance_and_spending/1079/payments_over_500,01-Aug-2023,Housing & Assets Total,REDACTED PERSONAL DATA,Corporate Management,1000.00,Rents,2324P05_CR00387,REDACTED PERSONAL DATA
Sandwell Metropolitan Borough Council,http://www.sandwell.gov.uk/info/200202/performance_and_spending/1079/payments_over_500,01-Aug-2023,Housing & Assets Total,REDACTED PERSONAL DATA,Corporate Management,1445.09,Rents,2324P05_CR00388,REDACTED PERSONAL DATA
Sandwell Metropolitan Borough Council,http://www.sandwell.gov.uk/info/200202/performance_and_spending/1079/payments_over_500,21-Aug-2023,Housing & Assets Total,REDACTED PERSONAL DATA,Corporate Management,1895.00,Rents,2324P05_CR00389,REDACTED PERSONAL DATA
Sandwell Metropolitan Borough Council,http://www.sandwell.gov.uk/info/200202/performance_and_spending/1079/payments_over_500,07-Aug-2023,Housing & Assets Total,REDACTED PERSONAL DATA,Housing & Assets Total,500.00,Rents,2324P05_CR00390,REDACTED PERSONAL DATA
Sandwell Metropolitan Borough Council,http://www.sandwell.gov.uk/info/200202/performance_and_spending/1079/payments_over_500,07-Aug-2023,Housing & Assets Total,REDACTED PERSONAL DATA,Housing & Assets Total,500.00,Rents,2324P05_CR00391,REDACTED PERSONAL DATA
Sandwell Metropolitan Borough Council,http://www.sandwell.gov.uk/info/200202/performance_and_spending/1079/payments_over_500,07-Aug-2023,Housing & Assets Total,REDACTED PERSONAL DATA,Housing & Assets Total,500.00,Rents,2324P05_CR00392,REDACTED PERSONAL DATA
Sandwell Metropolitan Borough Council,http://www.sandwell.gov.uk/info/200202/performance_and_spending/1079/payments_over_500,07-Aug-2023,Housing & Assets Total,REDACTED PERSONAL DATA,Housing & Assets Total,500.00,Rents,2324P05_CR00393,REDACTED PERSONAL DATA
Sandwell Metropolitan Borough Council,http://www.sandwell.gov.uk/info/200202/performance_and_spending/1079/payments_over_500,07-Aug-2023,Housing & Assets Total,REDACTED PERSONAL DATA,Housing & Assets Total,500.00,Rents,2324P05_CR00394,REDACTED PERSONAL DATA
Sandwell Metropolitan Borough Council,http://www.sandwell.gov.uk/info/200202/performance_and_spending/1079/payments_over_500,07-Aug-2023,Housing & Assets Total,REDACTED PERSONAL DATA,Housing & Assets Total,500.00,Rents,2324P05_CR00395,REDACTED PERSONAL DATA
Sandwell Metropolitan Borough Council,http://www.sandwell.gov.uk/info/200202/performance_and_spending/1079/payments_over_500,07-Aug-2023,Housing & Assets Total,REDACTED PERSONAL DATA,Housing & Assets Total,500.00,Rents,2324P05_CR00396,REDACTED PERSONAL DATA
Sandwell Metropolitan Borough Council,http://www.sandwell.gov.uk/info/200202/performance_and_spending/1079/payments_over_500,07-Aug-2023,Housing & Assets Total,REDACTED PERSONAL DATA,Housing & Assets Total,500.00,Rents,2324P05_CR00397,REDACTED PERSONAL DATA
